{"text_format":"1","workbook":"xlsx","n_sheets":5,"sheets":["Biznesplan","Tabela_pomocnicza","instrukcja_obsługi_makr","lista","PKD"],"not_rendered":{"charts":0,"images":7,"macros":1,"external_links":2,"defined_names":130,"comments":0,"pivot_tables":0},"unopened":[],"bounds":{"document_bytes":16777216,"sheet_cells":100000,"rows_first":2000,"rows_last":500,"rows_between":2000,"halvings":0,"cell_chars":16384,"cell_head_chars":4096},"cells_cut":0,"cells_raw":0,"read":"whole","date_system":"1900"}

{"sheet":"Biznesplan","index":0,"n_rows":388,"n_cols":31,"rows_kept":388,"cut":false,"hidden":false,"merged":[[371,1,371,11],[95,1,95,11],[159,3,159,6],[177,3,177,6],[177,8,177,9],[177,10,177,11],[179,1,181,11],[183,10,183,11],[192,1,192,11],[258,1,258,11],[198,1,198,11],[241,1,241,11],[208,1,208,4],[204,6,204,11],[252,1,255,11],[256,1,256,11],[187,3,187,6],[187,8,187,9],[187,10,187,11],[365,1,365,11],[366,3,366,11],[266,1,266,11],[373,1,373,11],[186,3,186,6],[186,8,186,9],[186,10,186,11],[193,1,193,11],[206,1,206,4],[121,9,121,11],[367,1,367,2],[367,3,367,11],[298,1,298,11],[151,1,151,11],[188,8,188,9],[188,10,188,11],[251,1,251,8],[184,8,184,9],[115,9,115,11],[123,1,123,4],[123,5,123,6],[196,1,197,11],[152,1,152,11],[235,1,235,11],[247,9,247,10],[248,9,248,10],[249,9,249,10],[250,9,250,10],[190,8,190,9],[183,3,183,6],[183,8,183,9],[167,10,167,11],[185,3,185,6],[185,8,185,9],[305,1,305,11],[349,1,349,2],[372,1,372,11],[217,7,217,11],[250,1,250,8],[218,1,218,5],[216,7,216,11],[219,1,219,5],[331,1,331,11],[203,1,203,11],[215,1,215,11],[264,1,264,11],[272,6,272,7],[205,6,205,11],[200,1,200,11],[364,1,364,11],[278,1,278,11],[285,1,285,2],[285,3,285,11],[341,1,341,2],[342,1,342,2],[343,1,343,2],[301,1,301,11],[344,1,344,2],[332,1,332,8],[307,6,308,8],[300,1,300,11],[369,1,369,2],[369,3,369,11],[286,1,286,2],[286,3,286,11],[325,1,329,11],[354,1,356,11],[122,1,122,4],[156,10,156,11],[160,1,160,5],[366,1,366,2],[243,1,243,11],[232,1,232,11],[233,1,233,11],[287,1,287,11],[275,1,275,11],[267,1,267,11],[386,2,386,3],[173,3,173,6],[173,8,173,9],[173,10,173,11],[174,3,174,6],[174,8,174,9],[174,10,174,11],[175,3,175,6],[175,8,175,9],[175,10,175,11],[176,3,176,6],[176,8,176,9],[176,10,176,11],[226,1,226,11],[386,7,386,10],[377,1,377,2],[377,3,377,4],[340,1,340,2],[209,1,209,11],[248,1,248,8],[249,1,249,8],[251,9,251,10],[110,1,110,2],[116,7,116,8],[116,1,116,3],[121,5,121,6],[182,1,182,11],[339,1,339,2],[374,1,374,11],[375,6,376,6],[292,1,292,11],[363,6,363,11],[201,1,201,10],[113,9,113,11],[113,1,114,3],[119,5,120,6],[164,8,164,9],[164,10,164,11],[117,5,117,6],[117,7,117,8],[117,9,117,11],[149,1,149,11],[124,1,124,11],[138,1,138,11],[121,7,121,8],[126,1,126,3],[156,3,156,6],[122,5,122,6],[142,1,143,11],[126,4,126,11],[122,7,122,8],[161,1,161,11],[158,3,158,6],[158,8,158,9],[190,10,190,11],[189,1,189,11],[184,10,184,11],[133,2,133,5],[165,3,165,6],[144,1,144,11],[147,1,147,11],[155,8,155,9],[156,8,156,9],[132,2,132,5],[166,10,166,11],[168,3,168,6],[168,8,168,9],[168,10,168,11],[131,6,131,11],[123,7,123,8],[123,9,123,11],[155,3,155,6],[130,1,130,11],[162,1,162,11],[141,1,141,11],[136,2,136,5],[145,1,145,11],[134,2,134,5],[155,10,155,11],[146,1,146,11],[135,2,135,5],[154,1,154,11],[158,10,158,11],[159,8,159,9],[159,10,159,11],[109,1,109,2],[109,3,109,5],[108,6,108,7],[103,1,103,11],[133,6,133,11],[135,6,135,11],[136,6,136,11],[134,6,134,11],[148,1,148,11],[125,4,125,11],[131,1,131,5],[150,1,150,11],[153,1,153,11],[127,1,127,11],[166,3,166,6],[125,1,125,3],[140,1,140,11],[132,6,132,11],[113,5,114,6],[112,1,112,11],[110,3,110,5],[111,1,111,11],[116,9,116,11],[115,1,115,3],[120,9,120,11],[121,1,121,4],[119,9,119,11],[116,5,116,6],[118,1,118,11],[119,1,120,4],[119,7,120,8],[117,1,117,3],[108,1,108,2],[100,4,100,11],[32,11,33,11],[45,1,45,10],[55,1,55,10],[75,1,75,11],[32,1,33,1],[94,1,94,11],[37,1,37,10],[41,1,41,10],[86,1,86,11],[98,1,98,11],[88,1,88,11],[89,1,89,11],[93,1,93,11],[97,1,97,11],[99,4,99,11],[107,9,107,11],[90,1,91,11],[96,1,96,11],[225,1,225,11],[157,3,157,6],[194,1,195,11],[122,9,122,11],[185,10,185,11],[178,1,178,5],[137,1,137,11],[139,1,139,11],[128,1,129,11],[188,1,188,5],[190,1,190,5],[170,1,171,11],[216,1,216,5],[247,1,247,8],[234,1,234,11],[238,1,238,11],[199,1,199,11],[202,1,202,11],[205,1,205,4],[236,1,236,11],[178,8,178,9],[157,8,157,9],[157,10,157,11],[172,1,172,11],[178,10,178,11],[160,10,160,11],[160,8,160,9],[164,3,164,6],[184,3,184,6],[191,1,191,11],[169,10,169,11],[169,1,169,5],[387,7,387,10],[337,1,337,2],[336,1,336,2],[335,1,335,2],[333,1,334,2],[318,1,318,2],[317,1,317,2],[281,1,281,3],[280,1,280,3],[212,1,212,11],[359,1,359,11],[360,1,360,11],[229,1,229,11],[230,1,230,11],[231,1,231,11],[363,1,363,5],[308,3,308,5],[348,1,348,2],[333,5,334,5],[280,4,280,11],[272,4,272,5],[362,1,362,5],[220,1,220,5],[214,1,214,11],[375,1,376,4],[368,1,368,2],[257,1,257,11],[362,6,362,11],[272,9,272,11],[273,9,273,11],[378,1,385,11],[368,3,368,11],[276,396,276,406],[261,1,261,11],[276,1,276,11],[276,407,276,417],[276,132,276,142],[276,110,276,120],[204,1,204,4],[213,1,213,11],[211,1,211,11],[244,1,244,11],[227,1,227,11],[237,1,237,11],[240,1,240,11],[228,1,228,11],[210,1,210,11],[207,1,207,4],[218,7,218,11],[219,7,219,11],[220,7,220,11],[276,385,276,395],[245,1,245,11],[246,1,246,11],[276,286,276,296],[276,297,276,307],[276,308,276,318],[276,319,276,329],[276,330,276,340],[206,6,206,11],[207,6,207,11],[208,6,208,11],[217,1,217,5],[224,1,224,11],[276,253,276,263],[361,1,361,11],[276,264,276,274],[259,1,259,11],[263,5,263,6],[263,8,263,9],[270,1,270,11],[271,2,271,3],[263,1,263,4],[276,121,276,131],[276,99,276,109],[276,22,276,32],[276,33,276,43],[276,44,276,54],[276,55,276,65],[276,66,276,76],[276,77,276,87],[353,1,353,2],[293,1,293,11],[299,1,299,11],[304,1,304,11],[350,1,350,2],[357,1,358,11],[271,6,271,7],[347,1,347,2],[273,6,273,7],[265,1,265,11],[288,1,288,11],[296,1,296,11],[273,2,273,3],[307,9,308,11],[291,1,291,11],[276,341,276,351],[276,352,276,362],[276,363,276,373],[276,374,276,384],[303,1,303,11],[333,4,334,4],[306,1,306,11],[338,1,338,2],[317,3,317,5],[289,1,289,11],[333,6,334,6],[333,7,334,7],[333,8,334,8],[276,154,276,164],[317,6,317,8],[317,9,317,11],[281,4,281,11],[290,1,290,11],[294,1,294,11],[295,1,295,11],[277,1,277,11],[276,143,276,153],[276,275,276,285],[276,88,276,98],[276,165,276,175],[276,176,276,186],[276,187,276,197],[276,198,276,208],[276,209,276,219],[276,220,276,230],[276,231,276,241],[276,242,276,252],[276,473,276,483],[276,418,276,428],[276,429,276,439],[276,781,276,791],[276,792,276,802],[276,803,276,813],[276,814,276,824],[276,825,276,835],[276,836,276,846],[276,847,276,857],[276,858,276,868],[276,583,276,593],[276,594,276,604],[276,605,276,615],[276,616,276,626],[276,627,276,637],[276,638,276,648],[276,649,276,659],[276,660,276,670],[276,671,276,681],[276,484,276,494],[276,495,276,505],[276,506,276,516],[276,517,276,527],[276,528,276,538],[276,539,276,549],[276,550,276,560],[276,561,276,571],[276,572,276,582],[276,440,276,450],[276,451,276,461],[276,462,276,472],[276,869,276,879],[276,682,276,692],[276,693,276,703],[276,704,276,714],[276,715,276,725],[276,726,276,736],[276,737,276,747],[276,748,276,758],[276,759,276,769],[276,770,276,780],[276,979,276,989],[276,990,276,1000],[276,1001,276,1011],[276,1012,276,1022],[276,1023,276,1033],[276,1034,276,1044],[276,1045,276,1055],[276,1056,276,1066],[276,1067,276,1077],[276,880,276,890],[276,891,276,901],[276,902,276,912],[276,913,276,923],[276,924,276,934],[276,935,276,945],[276,946,276,956],[276,957,276,967],[276,968,276,978],[276,1177,276,1187],[276,1188,276,1198],[276,1199,276,1209],[276,1210,276,1220],[276,1221,276,1231],[276,1232,276,1242],[276,1243,276,1253],[276,1254,276,1264],[276,1265,276,1275],[276,1078,276,1088],[276,1089,276,1099],[276,1100,276,1110],[276,1111,276,1121],[276,1122,276,1132],[276,1133,276,1143],[276,1144,276,1154],[276,1155,276,1165],[276,1166,276,1176],[276,1375,276,1385],[276,1386,276,1396],[276,1397,276,1407],[276,1408,276,1418],[276,1419,276,1429],[276,1430,276,1440],[276,1441,276,1451],[276,1452,276,1462],[276,1463,276,1473],[276,1276,276,1286],[276,1287,276,1297],[276,1298,276,1308],[276,1309,276,1319],[276,1320,276,1330],[276,1331,276,1341],[276,1342,276,1352],[276,1353,276,1363],[276,1364,276,1374],[276,1573,276,1583],[276,1584,276,1594],[276,1595,276,1605],[276,1672,276,1682],[276,1683,276,1693],[276,1694,276,1704],[276,1705,276,1715],[276,1716,276,1726],[276,1727,276,1737],[276,1738,276,1748],[276,1749,276,1759],[276,1760,276,1770],[276,1969,276,1979],[276,1606,276,1616],[276,1617,276,1627],[276,1628,276,1638],[276,1639,276,1649],[276,1650,276,1660],[276,1661,276,1671],[276,1474,276,1484],[276,1485,276,1495],[276,1496,276,1506],[276,1507,276,1517],[276,1518,276,1528],[276,1529,276,1539],[276,1540,276,1550],[276,1551,276,1561],[276,1562,276,1572],[276,1771,276,1781],[276,1782,276,1792],[276,1870,276,1880],[276,1881,276,1891],[276,1892,276,1902],[276,1903,276,1913],[276,1914,276,1924],[276,1925,276,1935],[276,1936,276,1946],[276,1947,276,1957],[276,1958,276,1968],[276,2266,276,2276],[276,2277,276,2287],[276,2288,276,2298],[276,2299,276,2309],[276,2310,276,2320],[276,1793,276,1803],[276,1804,276,1814],[276,1815,276,1825],[276,1826,276,1836],[276,1837,276,1847],[276,1848,276,1858],[276,1859,276,1869],[276,2167,276,2177],[276,2068,276,2078],[276,2079,276,2089],[276,2090,276,2100],[276,2101,276,2111],[276,2112,276,2122],[276,2123,276,2133],[276,2134,276,2144],[276,2145,276,2155],[276,2156,276,2166],[276,1991,276,2001],[276,2002,276,2012],[276,2013,276,2023],[276,2024,276,2034],[276,2035,276,2045],[276,2332,276,2342],[276,1980,276,1990],[276,2046,276,2056],[276,2057,276,2067],[276,2343,276,2353],[276,2354,276,2364],[276,2178,276,2188],[276,2189,276,2199],[276,2200,276,2210],[276,2211,276,2221],[276,2222,276,2232],[276,2233,276,2243],[276,2244,276,2254],[276,2255,276,2265],[276,2464,276,2474],[276,2475,276,2485],[276,2486,276,2496],[276,2321,276,2331],[276,2541,276,2551],[276,2552,276,2562],[276,2365,276,2375],[276,2376,276,2386],[276,2387,276,2397],[276,2398,276,2408],[276,2409,276,2419],[276,2420,276,2430],[276,2431,276,2441],[276,2442,276,2452],[276,2453,276,2463],[276,2761,276,2771],[276,2772,276,2782],[276,2783,276,2793],[276,2794,276,2804],[276,2805,276,2815],[276,2816,276,2826],[276,2662,276,2672],[276,2563,276,2573],[276,2574,276,2584],[276,2585,276,2595],[276,2596,276,2606],[276,2607,276,2617],[276,2618,276,2628],[276,2629,276,2639],[276,2640,276,2650],[276,2651,276,2661],[276,2497,276,2507],[276,2508,276,2518],[276,2519,276,2529],[276,2530,276,2540],[276,2827,276,2837],[276,2838,276,2848],[276,2849,276,2859],[276,2673,276,2683],[276,2684,276,2694],[276,2695,276,2705],[276,2706,276,2716],[276,2717,276,2727],[276,2728,276,2738],[276,2739,276,2749],[276,2750,276,2760],[276,2959,276,2969],[276,2970,276,2980],[276,2981,276,2991],[276,2992,276,3002],[276,3003,276,3013],[276,3014,276,3024],[276,3025,276,3035],[276,3036,276,3046],[276,3047,276,3057],[276,2860,276,2870],[276,2871,276,2881],[276,2882,276,2892],[276,2893,276,2903],[276,2904,276,2914],[276,2915,276,2925],[276,2926,276,2936],[276,2937,276,2947],[276,2948,276,2958],[276,3157,276,3167],[276,3168,276,3178],[276,3179,276,3189],[276,3190,276,3200],[276,3201,276,3211],[276,3212,276,3222],[276,3223,276,3233],[276,3234,276,3244],[276,3245,276,3255],[276,3553,276,3563],[276,3564,276,3574],[276,3575,276,3585],[276,3586,276,3596],[276,3058,276,3068],[276,3069,276,3079],[276,3080,276,3090],[276,3091,276,3101],[276,3102,276,3112],[276,3113,276,3123],[276,3124,276,3134],[276,3135,276,3145],[276,3146,276,3156],[276,3454,276,3464],[276,3355,276,3365],[276,3366,276,3376],[276,3377,276,3387],[276,3388,276,3398],[276,3399,276,3409],[276,3410,276,3420],[276,3421,276,3431],[276,3432,276,3442],[276,3443,276,3453],[276,3278,276,3288],[276,3289,276,3299],[276,3300,276,3310],[276,3311,276,3321],[276,3322,276,3332],[276,3256,276,3266],[276,3267,276,3277],[276,3333,276,3343],[276,3344,276,3354],[276,3619,276,3629],[276,3630,276,3640],[276,3641,276,3651],[276,3465,276,3475],[276,3476,276,3486],[276,3487,276,3497],[276,3498,276,3508],[276,3509,276,3519],[276,3520,276,3530],[276,3531,276,3541],[276,3542,276,3552],[276,3751,276,3761],[276,3762,276,3772],[276,3850,276,3860],[276,3861,276,3871],[276,3872,276,3882],[276,3883,276,3893],[276,3894,276,3904],[276,3905,276,3915],[276,3916,276,3926],[276,3927,276,3937],[276,3938,276,3948],[276,3773,276,3783],[276,3784,276,3794],[276,3795,276,3805],[276,3806,276,3816],[276,3597,276,3607],[276,3608,276,3618],[276,3817,276,3827],[276,3828,276,3838],[276,3839,276,3849],[276,3652,276,3662],[276,3663,276,3673],[276,3674,276,3684],[276,3685,276,3695],[276,3696,276,3706],[276,3707,276,3717],[276,3718,276,3728],[276,3729,276,3739],[276,3740,276,3750],[276,4048,276,4058],[276,4059,276,4069],[276,4070,276,4080],[276,4081,276,4091],[276,4092,276,4102],[276,4103,276,4113],[276,4114,276,4124],[276,4125,276,4135],[276,4136,276,4146],[276,3949,276,3959],[276,3960,276,3970],[276,3971,276,3981],[276,3982,276,3992],[276,3993,276,4003],[276,4004,276,4014],[276,4015,276,4025],[276,4026,276,4036],[276,4037,276,4047],[276,4246,276,4256],[276,4257,276,4267],[276,4268,276,4278],[276,4279,276,4289],[276,4290,276,4300],[276,4301,276,4311],[276,4312,276,4322],[276,4323,276,4333],[276,4334,276,4344],[276,4147,276,4157],[276,4158,276,4168],[276,4169,276,4179],[276,4180,276,4190],[276,4191,276,4201],[276,4202,276,4212],[276,4213,276,4223],[276,4224,276,4234],[276,4235,276,4245],[276,4444,276,4454],[276,4455,276,4465],[276,4466,276,4476],[276,4477,276,4487],[276,4488,276,4498],[276,4499,276,4509],[276,4510,276,4520],[276,4521,276,4531],[276,4532,276,4542],[276,4840,276,4850],[276,4851,276,4861],[276,4862,276,4872],[276,4873,276,4883],[276,4345,276,4355],[276,4356,276,4366],[276,4367,276,4377],[276,4378,276,4388],[276,4389,276,4399],[276,4400,276,4410],[276,4411,276,4421],[276,4422,276,4432],[276,4433,276,4443],[276,4741,276,4751],[276,4642,276,4652],[276,4653,276,4663],[276,4664,276,4674],[276,4675,276,4685],[276,4686,276,4696],[276,4697,276,4707],[276,4708,276,4718],[276,4719,276,4729],[276,4730,276,4740],[276,4565,276,4575],[276,4576,276,4586],[276,4587,276,4597],[276,4598,276,4608],[276,4609,276,4619],[276,4543,276,4553],[276,4554,276,4564],[276,4620,276,4630],[276,4631,276,4641],[276,4906,276,4916],[276,4917,276,4927],[276,4928,276,4938],[276,4752,276,4762],[276,4763,276,4773],[276,4774,276,4784],[276,4785,276,4795],[276,4796,276,4806],[276,4807,276,4817],[276,4818,276,4828],[276,4829,276,4839],[276,5137,276,5147],[276,5148,276,5158],[276,5159,276,5169],[276,5170,276,5180],[276,5181,276,5191],[276,5192,276,5202],[276,5203,276,5213],[276,5214,276,5224],[276,5225,276,5235],[276,5038,276,5048],[276,5049,276,5059],[276,5060,276,5070],[276,5071,276,5081],[276,5082,276,5092],[276,5093,276,5103],[276,4884,276,4894],[276,4895,276,4905],[276,5104,276,5114],[276,5115,276,5125],[276,5126,276,5136],[276,4939,276,4949],[276,4950,276,4960],[276,4961,276,4971],[276,4972,276,4982],[276,4983,276,4993],[276,4994,276,5004],[276,5005,276,5015],[276,5016,276,5026],[276,5027,276,5037],[276,5335,276,5345],[276,5346,276,5356],[276,5357,276,5367],[276,5368,276,5378],[276,5379,276,5389],[276,5390,276,5400],[276,5401,276,5411],[276,5412,276,5422],[276,5423,276,5433],[276,5236,276,5246],[276,5247,276,5257],[276,5258,276,5268],[276,5269,276,5279],[276,5280,276,5290],[276,5291,276,5301],[276,5302,276,5312],[276,5313,276,5323],[276,5324,276,5334],[276,5533,276,5543],[276,5544,276,5554],[276,5555,276,5565],[276,5566,276,5576],[276,5577,276,5587],[276,5588,276,5598],[276,5599,276,5609],[276,5610,276,5620],[276,5621,276,5631],[276,5434,276,5444],[276,5445,276,5455],[276,5456,276,5466],[276,5467,276,5477],[276,5478,276,5488],[276,5489,276,5499],[276,5500,276,5510],[276,5511,276,5521],[276,5522,276,5532],[276,5731,276,5741],[276,5742,276,5752],[276,5753,276,5763],[276,5764,276,5774],[276,5775,276,5785],[276,5786,276,5796],[276,5797,276,5807],[276,5808,276,5818],[276,5819,276,5829],[276,6127,276,6137],[276,6138,276,6148],[276,6149,276,6159],[276,6160,276,6170],[276,5632,276,5642],[276,5643,276,5653],[276,5654,276,5664],[276,5665,276,5675],[276,5676,276,5686],[276,5687,276,5697],[276,5698,276,5708],[276,5709,276,5719],[276,5720,276,5730],[276,6028,276,6038],[276,5929,276,5939],[276,5940,276,5950],[276,5951,276,5961],[276,5962,276,5972],[276,5973,276,5983],[276,5984,276,5994],[276,5995,276,6005],[276,6006,276,6016],[276,6017,276,6027],[276,5852,276,5862],[276,5863,276,5873],[276,5874,276,5884],[276,5885,276,5895],[276,5896,276,5906],[276,5830,276,5840],[276,5841,276,5851],[276,5907,276,5917],[276,5918,276,5928],[276,6193,276,6203],[276,6204,276,6214],[276,6215,276,6225],[276,6039,276,6049],[276,6050,276,6060],[276,6061,276,6071],[276,6072,276,6082],[276,6083,276,6093],[276,6094,276,6104],[276,6105,276,6115],[276,6116,276,6126],[276,6424,276,6434],[276,6435,276,6445],[276,6446,276,6456],[276,6457,276,6467],[276,6468,276,6478],[276,6479,276,6489],[276,6490,276,6500],[276,6501,276,6511],[276,6512,276,6522],[276,6325,276,6335],[276,6336,276,6346],[276,6347,276,6357],[276,6358,276,6368],[276,6369,276,6379],[276,6380,276,6390],[276,6171,276,6181],[276,6182,276,6192],[276,6391,276,6401],[276,6402,276,6412],[276,6413,276,6423],[276,6226,276,6236],[276,6237,276,6247],[276,6248,276,6258],[276,6259,276,6269],[276,6270,276,6280],[276,6281,276,6291],[276,6292,276,6302],[276,6303,276,6313],[276,6314,276,6324],[276,6622,276,6632],[276,6633,276,6643],[276,6644,276,6654],[276,6655,276,6665],[276,6666,276,6676],[276,6677,276,6687],[276,6688,276,6698],[276,6699,276,6709],[276,6710,276,6720],[276,6523,276,6533],[276,6534,276,6544],[276,6545,276,6555],[276,6556,276,6566],[276,6567,276,6577],[276,6578,276,6588],[276,6589,276,6599],[276,6600,276,6610],[276,6611,276,6621],[276,6820,276,6830],[276,6831,276,6841],[276,6842,276,6852],[276,6853,276,6863],[276,6864,276,6874],[276,6875,276,6885],[276,6886,276,6896],[276,6897,276,6907],[276,6908,276,6918],[276,6721,276,6731],[276,6732,276,6742],[276,6743,276,6753],[276,6754,276,6764],[276,6765,276,6775],[276,6776,276,6786],[276,6787,276,6797],[276,6798,276,6808],[276,6809,276,6819],[276,7018,276,7028],[276,7029,276,7039],[276,7040,276,7050],[276,7051,276,7061],[276,7062,276,7072],[276,7073,276,7083],[276,7084,276,7094],[276,7095,276,7105],[276,7106,276,7116],[276,7414,276,7424],[276,7425,276,7435],[276,7436,276,7446],[276,7447,276,7457],[276,6919,276,6929],[276,6930,276,6940],[276,6941,276,6951]],"merged_total":1929,"flags":["merged_cut"]}
[]
[]
[]
[]
[]
[]
[]
[null,"BIZNESPLAN"]
[]
[]
[null,"Poddziałanie 6.2: Pomoc na rozpoczęcie pozarolniczej\n                              działalności gospodarczej na obszarach wiejskich"]
[null,"Typ operacji:         Premie na rozpoczęcie działalności pozarolniczej"]
[null,"Program Rozwoju Obszarów Wiejskich na lata 2014-2020"]
[]
[]
[]
[]
[]
[]
[]
[]
[]
[]
[]
[]
[]
[]
[]
[]
[]
[]
[]
[]
[null,null," Znak sprawy"]
[]
[]
[]
[]
[]
[]
[]
[null,"Zawartość"]
[null,"Streszczenie"]
[null,"I. Informacje dotyczące Podmiotu ubiegającego się o przyznanie pomocy"]
[null,"         I.1.1 Dane Podmiotu ubiegającego się o przyznanie pomocy"]
[null,"     I.2. Opis wyjściowej sytuacji ekonomicznej Podmiotu ubiegającego się o przyznanie pomocy"]
[null,"         I.2.1 Posiadane zasoby materialne"]
[null,"         I.2.2. Finansowa sytuacja Podmiotu ubiegającego się o przyznanie pomocy"]
[]
[null,"         I.2.3 Posiadane kwalifikacje z zakresu podejmowanej pozarolniczej działalności gospodarczej o ile podmiot ten takie kwalifikacje posiada"]
[null,"II. Opis planowanych działań związanych z podejmowaną działalnością"]
[null,"     II.1 Wydatki związane z operacją"]
[null,"         II.1.1 Koszty środków trwałych"]
[null,"         II.1.2 Koszty innych środków związanych z pozarolniczą działalnością gospodarczą"]
[null,"         II.1.3 Koszty szkoleń, usług doradczych, lub innych przedsięwzięć wymaganych do rozwoju pozarolniczej działalności \n                   gospodarczej"]
[null,"         II.1.4 Koszty towarzyszące (niezbędne do realizacji operacji – zakres towarzyszący)"]
[null,"III. Cele pośrednie i końcowe operacji oraz motywy realizacji operacji"]
[null,"     III.1 Cele w ramach celu szczegółowego 6A"]
[null,"         III.1.1 Wskazanie planowanych do utworzenia miejsc pracy"]
[null,"     III.2 Cel przekrojowy – wprowadzenie innowacji poprzez inwestycje w środki trwałe i inne środki związane z pozarolniczą  działalnością gospodarczą"]
[null,"IV. Charakterystyka planowanej działalności po zrealizowaniu operacji"]
[null,"     IV.1 Dane podstawowe"]
[null,"     IV.2 Koncepcja wykonalności operacji oraz prowadzenia pozarolniczej działalności gospodarczej"]
[null,"     IV.3 Plan marketingowy"]
[null,"     IV.4 Prognozy finansowe"]
[null,"         IV.4.1 Prognoza wpływów na podstawie sekcji IV.4"]
[null,"         IV.4.2 Prognoza wydatków na podstawie sekcji IV.4"]
[null,"         IV.4.3 Prognoza różnicy  przychodów i wydatków"]
[null,"         IV.4.4 Wartość dodana brutto dla roku następującego po roku złożenia  wniosku o płatność drugiej raty pomocy"]
[null,"V. Podsumowanie biznesplanu"]
[]
[]
[null,"Przed rozpoczęciem wypełniania biznesplanu, proszę o zapoznanie się z poniższymi wskazówkami."]
[]
[null,"Biznesplan składa się z pięciu sekcji, które w wyczerpujący sposób powinny przedstawić obraz planowanego przedsięwzięcia."]
[]
[null,"Ważne: niedozwolona jest jakakolwiek ingerencja w formę biznesplanu poprzez usuwanie punktów, tabel i stron, etc."]
[]
[null,"Pomoc może zostać przyznana na operację  uzasadnioną ekonomicznie."]
[]
[null,"Operację można uznać za uzasadnioną ekonomicznie m. in. jeżeli prognoza wskazuje, że  od  roku następującego po roku, w którym wnioskodawca planuje złożenie wniosku o płatność pierwszej raty, działalność prowadzona w związku z realizowaną operacją, będzie generowała wpływy nie mniejsze niż wartość wydatków na działalność objętą operacją.\nW przypadku, gdy planowany rok złożenia wniosku o płatność pierwszej raty przypada na rok 2020, wówczas warunek ten musi być spełniony od roku 2021."]
[null,"Uznanie przedstawionych w biznesplanie założeń za prawidłowe, może nastąpić jedynie w przypadku  pozytywnej oceny biznesplanu, co do jego:"]
[null,"- poprawności formalnej,"]
[null,"- spójności, "]
[null,"- zasadności inwestycji w danej działalności, a także"]
[null,"- realności przyjętych założeń w zakresie wielkości i struktury przychodów i wydatków."]
[]
[null,"Do wniosku o przyznanie pomocy należy dołączyć biznesplan na:"]
[null,"- nośniku informatycznym (CD lub DVD) oraz "]
[null,"- podsumowanie biznesplanu – sekcja V, w formie wydruku."]
[]
[]
[null,"Streszczenie"]
[null,"Tę część należy wypełnić po sporządzeniu całego dokumentu. Powinna ona zawierać nie więcej niż 500 znaków (ok. 10 wierszy).\nW sposób skrótowy należy opisać elementy zawarte w biznesplanie. "]
[null,null,null,null,null,null,null,null,null,null,null,null,{"$f":"ROW(M1)","v":1}]
[null,null,null,null,null,null,null,null,null,null,null,null,{"$f":"ROW(M2)","v":2}]
[null,null,null,null,null,null,null,null,null,null,null,null,{"$f":"ROW(M3)","v":3}]
[null,"I. Informacje dotyczące Podmiotu ubiegającego się o przyznanie pomocy"]
[null,"I.1.1 Dane Podmiotu ubiegającego się o przyznanie pomocy"]
[null,"1.   Imię i nazwisko Podmiotu ubiegającego się \n      o przyznanie  pomocy"]
[".","2.  PESEL",null,null,null,null,null,null,null,null,null,null,null,null,{"$f":"MID(PESEL,1,1)*9+MID(PESEL,2,1)*7+MID(PESEL,3,1)*3+MID(PESEL,4,1)*1+MID(PESEL,5,1)*9+MID(PESEL,6,1)*7+MID(PESEL,7,1)*3+MID(PESEL,8,1)*1+MID(PESEL,9,1)*9+MID(PESEL,10,1)*7","v":{"$error":"#VALUE!"}},{"$f":"RIGHT(PESEL-RIGHT(O101))","v":{"$error":"#VALUE!"}},{"$f":"RIGHT(O101)","v":{"$error":"#VALUE!"}},null,null,null,null,null,null,null,{"$f":"MID(PESEL,11,1)","v":""},{"$f":"COUNTBLANK(O101:Y101)","v":8},{"$f":"+O101*1+3*P101+7*Q101+9*R101+1*S101+3*T101+7*U101+9*V101+1*W101+3*X101","v":{"$error":"#VALUE!"}},{"$f":"RIGHT(AA101,1)","v":{"$error":"#VALUE!"}},{"$f":"10-Y101","v":{"$error":"#VALUE!"}},{"$f":"+AB101-AC101","v":{"$error":"#VALUE!"}},{"$f":"IF(AD101=0,\"Prawda\",\"Fałsz\")","v":{"$error":"#VALUE!"}}]
[null,null,null,null,null,null,null,null,null,null,null,null,null,null,null,null,null,null,null,null,null,null,null,null,null,null,null,null,{"$f":"10-Y101","v":{"$error":"#VALUE!"}},{"$f":"+AB101-AC101","v":{"$error":"#VALUE!"}}]
[]
[null,"I.2. Opis wyjściowej sytuacji ekonomicznej Podmiotu ubiegającego się o przyznanie pomocy "]
[null,"I.2.1 Posiadane zasoby materialne1"]
[null,"Charakterystyka istniejących nieruchomości"]
[null,"Rodzaj nieruchomości",null,"Powierzchnia/ Kubatura",null,null,"Posiadanie zależne",null,"Rok budowy","Stan techniczny"]
[null,null,null,null,null,null,null,null,null,"(bardzo dobry, dobry, zły)"]
[null,"Grunty",null,"ha fizyczne"]
[null,null,null,null,null,null,"(wybierz z listy)"]
[null,null,null,null,null,null,"(wybierz z listy)",null,null,null,null,null,{"$f":"ROW(M1)","v":1}]
[]
[null,"[1] należy wykazać jedynie posiadane zasoby materialne, jakie podmiot ten posiada do podjęcia działalności pozarolniczej i które będą wykorzystywane w ramach  prowadzenia tej działalności "]
[null,"Budynki/budowle",null,null,"m2/m3","Posiadanie zależne",null,"Rok budowy",null,"Stan techniczny"]
[null,null,null,null,null,null,null,null,null,"(bardzo dobry, dobry, zły)"]
[null,null,null,null,null,"(wybierz z listy)"]
[null,null,null,null,null,"(wybierz z listy)"]
[null,null,null,null,null,"(wybierz z listy)",null,null,null,null,null,null,{"$f":"ROW(M1)","v":1}]
[null,"Posiadane maszyny/urządzenia/pojazdy/inne"]
[null,"Nazwa i typ maszyny/urządzenia/pojazdu/wyposażenie",null,null,null,"Posiadanie zależne",null,"Rok produkcji",null,"Stan techniczny "]
[null,null,null,null,null,null,null,null,null,"(bardzo dobry, dobry, zły) "]
[null,null,null,null,null,"(wybierz z listy)"]
[null,null,null,null,null,"(wybierz z listy)"]
[null,null,null,null,null,"(wybierz z listy)",null,null,null,null,null,null,{"$f":"ROW(M1)","v":1}]
[null,"I.2.2. Finansowa sytuacja Podmiotu ubiegającego się o przyznanie pomocy"]
[null,"Posiadane środki pieniężne2"]
[null,"Dotychczasowe źródło utrzymania"]
[null,"[2] Należy wpisać stan posiadania na ostatni dzień miesiąca poprzedzającego dzień złożenia wniosku o przyznanie pomocy."]
[]
[]
[null,"I.2.3. Posiadane kwalifikacje z zakresu podejmowanej pozarolniczej działalności gospodarczej o ile podmiot  ten takie kwalifikacje\n          posiada"]
[null,"Należy zaznaczyć właściwą odpowiedź",null,null,null,null,"Należy wskazać, z czego wynika określone przyporządkowanie np. dyplom, świadectwo itp."]
[null,null,"brak",null,null,null,"Nie dotyczy"]
[null,null,"ukończone studia pierwszego stopnia lub studia drugiego stopnia, lub jednolite studia magisterskie"]
[null,null,"wykształcenie średnie"]
[null,null,"kwalifikacje na poziomie zasadniczej szkoły zawodowej lub branżowej szkoły I stopnia w zawodzie związanym z podjęciem określonej działalności pozarolniczej, wymienionej w załączniku do rozporządzenia3"]
[null,null,"tytuł wykwalifikowanego robotnika, mistrza lub tytuł zawodowy lub tytuł zawodowy mistrza, w zawodzie związanym z podjęciem działalności pozarolniczej wymienionej w załączniku do rozporządzenia3, uzyskany w formach pozaszkolnych"]
[]
[null,"[3] Rozporządzenie Ministra Rolnictwa i Rozwoju Wsi z dnia 25 lipca 2016 r. w sprawie szczegółowych  warunków i trybu przyznawania, wypłaty oraz zwrotu pomocy finansowej na operacje typu „Premie na rozpoczęcie działalności pozarolniczej” w ramach poddziałania „Pomoc na rozpoczęcie pozarolniczej działalności gospodarczej na obszarach wiejskich” objętego Programem Rozwoju Obszarów Wiejskich na lata 2014–2020 (Dz. U. poz. 1196 z późn. zm.) zwane dalej rozporządzeniem"]
[]
[null,"II. Opis planowanych działań związanych z podejmowaną działalnością"]
[null,"II.1 Wydatki związane z operacją"]
[null,"Należy ocenić wpływ poszczególnych elementów zakresu rzeczowego operacji na osiągnięcie jej celów."]
[]
[null,"Dla ustalenia, czy wszystkie elementy zakresu rzeczowego są niezbędne do osiągnięcia celu operacji, należy dokonać oceny zasadności planowanych inwestycji obejmujących zakup maszyn, urządzeń, środków transportu, narzędzi, wyposażenia, sprzętu komputerowego i oprogramowania, systemów zarządzania jakością, patentów i licencji z uwzględnieniem:"]
[null," -  ich przydatności / komplementarności technologicznej oraz "]
[null," -  profilu i skali produkcji / świadczonych usług / sprzedaży towarów."]
[null,"Wpływ elementów zakresu rzeczowego na osiągnięcie celów operacji zostanie określony na podstawie pozytywnej oceny potwierdzającej, że:"]
[null," -  są one przydatne ze względu na rodzaj realizowanej operacji, na profil działalności (produkcyjnej, usługowej lub handlowej);"]
[null," -  są spójne w zakresie stosowanych lub planowanych do stosowania technologii produkcji / organizację działalności usługowej /handlowej;\n -  łącznie są wystarczające do prawidłowego zrealizowania zakładanych celów operacji;\n -  są dostosowane mocą/wydajnością do profilu i skali produkcji (zakładanej prognozy sprzedaży)\n     w odniesieniu do posiadanego zaplecza i jego stanu technicznego oraz pozostałych elementów zakresu rzeczowego operacji;\n -  standard planowanych robót, dostaw i usług jest adekwatny w stosunku do profilu działaności planowanej do prowadzenia po zrealizowaniu operacji.\n"]
[]
[null,null,null,null,null,null,null,null,null,null,null,null,{"$f":"ROW(M1)","v":1}]
[null,11111111111]
[null,"II.1.1 Koszty środków trwałych"]
[null,"Należy przedstawić zakres planowanego przedsięwzięcia (np. budowa, modernizacja budynków, zakup maszyn i urządzeń, środków transportu, zagospodarowanie terenu, itp.). Wartość środków trwałych musi stanowić co najmniej 70% kwoty pomocy. "]
[null,"Lp.","Nazwa zadania ","Uzasadnienie",null,null,null,"Rok poniesienia wydatku","Wartość netto",null,"Wartość brutto4"]
[null,{"$f":"ROW(B1)","v":1}]
[null,{"$f":"ROW(B2)","v":2}]
[null,{"$f":"ROW(B3)","v":3},null,null,null,null,null,null,null,null,null,null,{"$f":"ROW(M1)","v":1}]
[null,null,1111111111111110]
[null,"Wartość razem",null,null,null,null,null,null,{"$f":"SUM(I157:J160)","v":0},null,{"$f":"SUM(K157:L160)","v":0}]
[null,"[4]  Wartość Inwestycji w środki trwałe nie może przekraczać cen rynkowych. "]
[]
[null,"II.1.2 Koszty innych środków związanych z pozarolniczą działalnością gospodarczą"]
[null,"Lp.","Nazwa zadania ","Uzasadnienie",null,null,"Rok poniesienia wydatku","Rok poniesienia wydatku","Wartość netto",null,"Wartość brutto"]
[null,{"$f":"ROW(B1)","v":1}]
[null,{"$f":"ROW(B2)","v":2}]
[null,{"$f":"ROW(B3)","v":3},null,null,null,null,null,null,null,null,null,null,{"$f":"ROW(M1)","v":1}]
[null,null,111111]
[null,"Wartość razem",null,null,null,null,null,null,{"$f":"SUM(I166:J169)","v":0},{"$f":"SUM(J166:L168)","v":0},{"$f":"SUM(K166:L169)","v":0},{"$f":"SUM(L166:N168)","v":1}]
[]
[]
[null,"II.1.3 Koszty szkoleń, usług doradczych, lub innych przedsięwzięć wymaganych do rozwoju\n          pozarolniczej działalności gospodarczej"]
[null,"Lp.","Nazwa zadania ","Uzasadnienie",null,null,"Rok poniesienia wydatku","Rok poniesienia wydatku","Wartość netto",null,"Wartość brutto"]
[null,{"$f":"ROW(B1)","v":1}]
[null,{"$f":"ROW(B2)","v":2}]
[null,{"$f":"ROW(B3)","v":3},null,null,null,null,null,null,null,null,null,null,{"$f":"ROW(M1)","v":1}]
[]
[null,"Wartość razem",null,null,null,null,null,null,{"$f":"SUM(I175:J178)","v":0},{"$f":"SUM(J175:L177)","v":0},{"$f":"SUM(K175:L178)","v":0},{"$f":"SUM(L175:N177)","v":1}]
[]
[]
[]
[null,"II.1.4 Koszty towarzyszące (niezbędne do realizacji operacji – zakres towarzyszący)5"]
[null,"Lp.","Nazwa zadania ","Uzasadnienie",null,null,"Rok poniesienia wydatku","Rok poniesienia wydatku","Wartość netto",null,"Wartość brutto[4]"]
[null,{"$f":"ROW(B1)","v":1}]
[null,{"$f":"ROW(B2)","v":2}]
[null,{"$f":"ROW(B3)","v":3},null,null,null,null,null,null,null,null,null,null,{"$f":"ROW(M1)","v":1}]
[]
[null,"Wartość razem",null,null,null,null,null,null,{"$f":"SUM(I185:J188)","v":0},{"$f":"SUM(J185:L186)","v":0},{"$f":"SUM(K185:L188)","v":0},{"$f":"SUM(L185:N186)","v":0}]
[]
[null,"Wartość kosztów razem",null,null,null,null,null,null,{"$f":"I179+I170+I161","v":0},null,{"$f":"K179+K170+K161","v":0}]
[]
[null,"[5] Definicja zakresu towarzyszącego – pozostały zakres, którego wykonanie jest konieczne w celu prawidłowej realizacji operacji. "]
[]
[]
[]
[]
[]
[null,"III. Cele pośrednie i końcowe operacji oraz motywy realizacji operacji"]
[null,"III.1 Cele w ramach celu szczegółowego 6A"]
[null,"Należy określić rezultaty realizacji operacji planowane do osiągnięcia przez Podmiot ubiegający się o przyznanie pomocy poprzez wykonywanie działalności gospodarczej objętej operacją, w ramach celu szczegółowego 6A - Ułatwianie różnicowania działalności, zakładania i rozwoju małych przedsiębiorstw, a także tworzenia miejsc pracy."]
[null,"Należy podkreślić, iż za cel operacji nie może zostać uznany np. zakup maszyn. Zakres rzeczowy operacji nie stanowi więc celu samego w sobie, lecz jest środkiem za pomocą, którego właściwy rezultat realizacji operacji może zostać osiągnięty."]
[null,"Jeżeli cele pośrednie i końcowe realizacji operacji zostaną określone za pomocą wskaźników, należy przedstawić powody, dla których dany wskaźnik został zastosowany."]
[null,"Podmiot ubiegający się o przyznanie pomocy powinien uzasadnić, z jakich powodów planuje zrealizować niniejszą operację, w tym, czy przewidywał zastosowanie rozwiązań alternatywnych, zarówno w odniesieniu do zakresu rzeczowego, jak i rodzaju planowanej działalności."]
[null,"Cel",null,null,null,"Tak/Nie","Opis"]
[null,"Utworzenie przedsiębiorstwa6",null,null,null,"(wybierz z listy)"]
[null,"Utworzenie miejsc pracy7",null,null,null,"(wybierz z listy)"]
[null,"Inne8",null,null,null,"(wybierz z listy)"]
[]
[]
[null,"[6] Cel pośredni"]
[null,"[7] Cel pośredni, w odniesieniu do samozatrudnienia, cel końcowy w stosunku do zatrudnienia pracowników"]
[null,"[8] Należy wpisać, o ile dotyczy, wraz ze wskazaniem czy jest to cel pośredni czy końcowy. Wskazany cel musi zostać osiągnięty nie później niż do dnia złożenia\n wniosku o płatność drugiej raty pomocy. "]
[]
[null,"III.1.1 Wskazanie planowanych do utworzenia miejsc pracy"]
[null,"Jednym z celów poddziałania jest tworzenie miejsc pracy. Należy wymienić i opisać planowane do utworzenia w wyniku realizacji operacji miejsca pracy. Dotyczy to zarówno Podmiotu ubiegającego się przyznanie pomocy jak i pozostałych planowanych do utworzenia miejsc pracy."]
[null,"Nazwa stanowiska",null,null,null,null,"Wymiar czasu pracy","Opis"]
[]
[]
[]
[null,null,null,null,null,null,null,null,null,null,null,null,{"$f":"ROW(M1)","v":1}]
[]
[]
[]
[null,"Moment bazowy stanu zatrudnienia (w przeliczeniu na pełne etaty)."]
[null,"Należy wpisać wartość wyższą wybraną z pól III.1.1.1.1 Średnia arytmetyczna stanu zatrudnienia z okresu 12 miesięcy poprzedzających miesiąc złożenia wniosku o przyznanie pomocy, a w przypadku, gdy działalność jest prowadzona krócej, na podstawie średniej arytmetycznej z okresu prowadzenia tej działalności oraz III.1.1.1.2 Stan zatrudnienia w miesiącu poprzedzającym miesiąc złożenia wniosku (w przeliczeniu na pełne etaty)."]
[null,"Średnią arytmetyczną stanu zatrudnienia oblicza się sumując liczbę pracowników (zatrudnionych na podstawie umowy o pracę) w przeliczeniu na pełne etaty z okresu kolejnych 12 miesięcy poprzedzających miesiąc złożenia wniosku o przyznanie pomocy, np. jeśli wniosek składany jest w sierpniu 2019 r. to zatrudnienie obejmuje okres od sierpnia 2018 r. do lipca 2019 r. "]
[null,"Uzyskaną sumę należy podzielić przez 12 (miesięcy). W przypadku osób zatrudnionych w niepełnym wymiarze zatrudnienie należy przeliczyć na pełne etaty. Zatrudnienie oraz przerwy w opłacaniu składek ustala się na podstawie kodów wykorzystywanych w dokumentach ubezpieczeniowych ZUS."]
[null,"Do stanu zatrudnienia nie należy wliczać pracowników przebywających na urlopie: "]
[null," -  bezpłatnym;\u001e\u001e"]
[null," -  macierzyńskim;"]
[null," -  bezpłatnym w celu sprawowania opieki nad dzieckiem;"]
[null," -  bezpłatnym udzielonym pracownikom powołanym do pełnienia określonych funkcji z wyboru;"]
[null,"oraz"]
[null," -  stażystów;"]
[null," -  osób zatrudnionych w celu przygotowania zawodowego;"]
[null," -  osób wykonujących pracę na podstawie innej niż umowa o pracę np. umowy zlecenia lub umowy o dzieło lub kontrakt menadżerski;"]
[null," -  osób współpracujących (za osobę współpracującą w rozumieniu ustawy o systemie ubezpieczeń społecznych uważa się małżonka, dzieci własne, dzieci\n    drugiego małżonka i  dzieci przysposobione, rodziców, macochę i ojczyma oraz osoby przysposabiające, jeżeli pozostają z osobą prowadzącą działalność \n    gospodarczą we wspólnym gospodarstwie  domowym i współpracują z nią przy prowadzeniu tej działalności); "]
[null," -  osób skazanych (w czasie odbywania kary pozbawienia wolności lub tymczasowego aresztowania). "]
[null,"W przypadku przedsiębiorstw działających krócej niż rok, średnią arytmetyczną stanu zatrudnienia oblicza się sumując liczbę pracowników zatrudnionych na umowę o pracę w przeliczeniu na pełne etaty z okresu wszystkich miesięcy (prowadzenia działalności) poprzedzających miesiąc złożenia wniosku o przyznanie pomocy. Uzyskaną wartość należy podzielić przez ilość miesięcy prowadzenia działalności."]
[null,"W przypadku osób, które przebywają na np. urlopie wychowawczym, macierzyńskim, bezpłatnym jedynie przez część miesiąca, a w  pozostałych dniach miesiąca pracują, przy wyliczeniu poziomu zatrudnienia w danym miesiącu należy stosować metodę średniej arytmetycznej ze stanów dziennych w miesiącu, tzn. należy zsumować stan zatrudnienia z każdego dnia w miesiącu, łącznie z niedzielami i świętami, przyjmując dla tych dni stan z dnia poprzedniego i podzielić przez ilość dni w miesiącu."]
[null,"Powyższy sposób postępowania należy stosować również w przypadku pracowników zatrudnianych/kończących pracę z innym dniem niż\npierwszym/ostatnim dniem miesiąca."]
[null,"Ww. informacje powinny być zgodne z deklaracjami ZUS DRA (wraz z załącznikami) za okres 12 miesięcy poprzedzających miesiąc złożenia wniosku o przyznanie pomocy (a w przypadku prowadzenia działalności krócej niż rok - za wszystkie miesiące od momentu rozpoczęcia działalności)."]
[null,"W przypadku wnioskodawców podejmujących działalność gospodarczą, w polach III.1.1.1.1, III.1.1.1.2, należy wstawić zero."]
[null,"W polu III.1.1.2 Liczba planowanych do utworzenia miejsc pracy w wyniku realizacji operacji (w przeliczeniu na pełne etaty) należy podać liczbę planowanego zatrudnienia w przeliczeniu na pełne etaty."]
[null,"W polu III.1.1.3 Planowany docelowy stan zatrudnienia osiągnięty w wyniku realizacji operacji należy wpisać sumę pól III.1.1.1 i III.1.1.2. "]
[]
[null,"III.1.1.1 Moment bazowy stanu zatrudnienia (w przeliczeniu na pełne etaty)",null,null,null,null,null,null,null,{"$f":"IF(J249>J250,J249,J250)","v":0}]
[null,"III.1.1.1.1 średnia arytmetyczna stanu zatrudnienia z okresu 12 miesięcy poprzedzających miesiąc złożenia wniosku o przyznanie pomocy(w przeliczeniu na pełne etaty)"]
[null,"III.1.1.1.2 stan zatrudnienia w miesiącu poprzedzającym miesiąc złożenia wniosku (w przeliczeniu na pełne etaty)",null,null,null,null,null,null,","]
[null,"III.1.1.2 Liczba planowanych do utworzenia miejsc pracy w wyniku realizacji operacji (w przeliczeniu na pełne etaty)",null,null,null,null,null,null,","]
[null,"III.1.1.3 Planowany docelowy stan zatrudnienia osiągnięty w wyniku realizacji operacji (w przeliczeniu na pełne etaty)\n          - suma III.1.1.1 i III.1.1.2.",null,null,null,null,null,null,",",{"$f":"+J251+J248","v":0}]
[]
[]
[]
[]
[null,"  III.2 Cel przekrojowy9 – wprowadzenie innowacji poprzez inwestycje w środki trwałe i inne środki związane z pozarolniczą działalnością\n  gospodarczą"]
[null,"W odniesieniu do kosztów wskazanych w tabeli  II.1.1 oraz  II.1.2, należy odpowiedzieć na pytania, czy operacja poprzez inwestycje w środki trwałe i inne środki związane działalnością pozarolniczą będzie przyczyniać się do osiągnięcia celów przekrojowych. Jeżeli zaznaczono odpowiedź TAK, w polu poniżej należy uzasadnić, w jaki sposób i poprzez jakie elementy zakresu rzeczowego operacja przyczyni się do realizacji danego celu przekrojowego. "]
[]
[null,"[9] Cel końcowy"]
[]
[null,"Odpowiedzi TAK można udzielić jedynie w przypadku, jeżeli operacja wpływa na realizację celów przekrojowych, o których mowa w art. 5 rozporządzenia nr 1305/201310 w zakresie innowacyjności, o której mowa w § 3 ust. 1 pkt 4 lit. a rozporządzenia w odniesieniu do gminy, na obszarze, której zlokalizowane będzie główne miejsce wykonywania działalności podmiotu ubiegającego się o przyznanie pomocy."]
[]
[null,"Innowacyjność",null,null,null,"TAK",null,null,"NIE"]
[null,"Odpowiedzi TAK można udzielić, jeżeli narzędzie do oceny innowacyjności działalności gospodarczej na obszarze gminy zwróci wynik pozytywny tj.: „operacja innowacyjna”"]
[null,"Jeżeli zaznaczono odpowiedź TAK, należy wskazać, które pozycje z punktu  II.1.1 Koszty środków trwałych będą miały wpływ na osiągnięcie celu dotyczącego innowacyjności i w jakim zakresie."]
[null,"Należy w szczególności, w odniesieniu do każdej pozycji opisać:"]
[null," -  rodzaj innowacyjności (produktu, procesu/technologii, marketingowa, organizacyjna),"]
[null," -  wskaźnik, np. liczba usług, liczba maszyn i urządzeń, liczba nowych technologii"]
[null," -  wartość wskaźnika, należy wpisać np.: 1,2, itd."]
[null," - uzasadnić innowację, wraz z potwierdzeniem, że innowacja spełnia wymagania zawarte w ww. wyjaśnieniach. Jeżeli fakt spełnienia tego  warunku został \n   udokumentowany, należy wskazać rodzaj dokumentu a jego kopię dołączyć do wniosku o przyznanie pomocy."]
[null,"L.p.","Nazwa zadania",null,"Rodzaj innowacji",null,"Wskaźnik",null,"Wartość wskaźnika","Uzasadnienie innowacji"]
[null,{"$f":"ROW(B1)","v":1}]
[null,{"$f":"ROW(B2)","v":2},null,null,null,null,null,null,null,null,null,null,{"$f":"ROW(M1)","v":1}]
[]
[null,"[10] Rozporządzenie Parlamentu Europejskiego i Rady (UE) nr 1305/2013 z dnia 17 grudnia 2013 r. w sprawie wsparcia rozwoju obszarów wiejskich przez Europejski Fundusz Rolny na rzecz Rozwoju Obszarów Wiejskich (EFRROW) i uchylające rozporządzenie Rady (WE) nr 1698/2005 (Dz. Urz. UE L 347 z 20.12.2013, str. 487, z późn. zm.)"]
[]
[null,"IV. Charakterystyka planowanej działalności po zrealizowaniu operacji"]
[null,"IV.1 Dane podstawowe"]
[null,"Proszę zaprezentować podstawowe dane dotyczące planowanego przedsiębiorstwa. W przypadku, gdy w kolumnie Kod PKD zostało wpisanych więcej niż jeden rodzaj działalności należy jako pierwszy wpisać kod przeważający planowanej działalności (zgodnie z udziałem w prognozie przychodów)"]
[null,"Nazwa działalności (firma)"]
[null,"Planowana data rozpoczęcia wykonywania działalności "]
[null,"Klasyfikacja planowanej działalności"]
[null,"Kod PKD",null,"Opis kodu PKD"]
[null,"(wybierz z listy)",null,{"$f":"VLOOKUP(B285,PKD!$A$2:$H$407,2,FALSE)","v":0}]
[null,"(wybierz z listy)",null,{"$f":"VLOOKUP(B286,PKD!$A$2:$H$407,2,FALSE)","v":0},null,null,null,null,null,null,null,null,{"$f":"ROW(M1)","v":1}]
[null,"(wybierz z listy)",null,{"$f":"VLOOKUP(B287,PKD!$A$2:$H$407,2,FALSE)","v":0}]
[]
[null,"IV.2 Koncepcja wykonalności operacji oraz prowadzenia pozarolniczej działalności gospodarczej"]
[null,"W tej części należy w sposób syntetyczny przedstawić główne założenia dotyczące planowanego sposobu realizacji operacji. Należy przedstawić główne aspekty realizacji operacji takie jak:\n- miejsce lokalizacji operacji/główne miejsce wykonywania działalności wskazane we wniosku o przyznanie pomocy, \n- wybór rodzaju działalności, \n- określenie zakresu rzeczowego operacji, \n- sposób finansowania zakupów, \n- wykorzystanie posiadanych zasobów, \n- potrzebę zatrudnienia pracowników.\nNależy również określić ogólną koncepcję wykonywania pozarolniczej działalności gospodarczej po zrealizowaniu operacji. W tym miejscu proszę odnieść się do: \n-  organizacji pracy,\n-  zakresu rzeczowego operacji i jego wpływu na wykonywanie działalności,\n-  prognoz finansowych dotyczących przyszłej działalności (informacje dotyczące tej kwestii zostały zawarte w części IV.4 biznesplanu). "]
[]
[]
[]
[null,"IV.3 Plan marketingowy"]
[null,"Plan marketingowy operacji powinien wskazywać na realizację przyjętych założeń w określonych warunkach rynkowych.   Plan musi opierać się na diagnozie sytuacji, określeniu i wyborze rynków docelowych,   klientów docelowych   oraz wyborze ogólnych strategii i przedstawieniu szczegółowego programu realizacji przyjętych w biznesplanie rezultatów realizacji operacji. Plan marketingowy powinien odnosić się do planowanego modelu biznesowego i realizowanego rzeczowego."]
[null,"Należy wskazać, jakie produkty zostaną zaoferowane na rynku, czy są to nowe produkty, czy różnią się od dotychczas dostępnych, jaka jest konkurencja na rynku, dlaczego klienci wybiorą ofertę firmy Podmiotu ubiegającego się o przyznanie pomocy. "]
[null,"Należy opisać, w jaki sposób będzie prowadzona sprzedaż i promocja po zrealizowaniu operacji, w jaki sposób klienci będą informowani o produktach / towarach/ usługach; jakie narzędzia promocji oraz reklamy zostaną zastosowane w związku z zrealizowaną inwestycją."]
[null,"Do jakiej grupy odbiorców będą adresowane nowe produkty/ towary/ usługi oraz jakie kanały dystrybucji będą stosowane."]
[]
[null,null,null,null,null,null,null,null,null,null,null,null,{"$f":"ROW(M1)","v":1}]
[]
[null,"IV.4 Prognozy finansowe"]
[null,"Dane powinny obejmować sześć okresów sprawozdawczych.\nNależy uzasadnić prawidłowość przedstawionych szacunków, tj. jak dokonano kalkulacji cen, oraz wielkości sprzedaży, wielkości wydatków.\nNależy m.in. wyjaśnić sposób określenia przez Podmiot ubiegający się o przyznanie pomocy istnienia na rynku określonej potrzeby, która spowoduje zagospodarowanie proponowanej przez Podmiot ubiegający się o przyznanie pomocy podaży produktów/towarów/usług. \nWynik wyjaśnień powinien znaleźć ilościowe odzwierciedlenie w sekcji IV.4.1, IV.4.2.\nW prognozie finansowej nie należy ujmować kwoty premii oraz odpowiadających jej wydatków. Są to wielkości, które co do zasady będą się kompensować."]
[]
[null,null,null,null,null,null,null,null,null,null,null,null,{"$f":"ROW(M1)","v":1}]
[]
[null,"IV.4.1 Prognoza wpływów na podstawie sekcji IV.4"]
[null,"Specyfikacja produktów/towarów/usług ",null,"rok n ",null,null,"rok (n+1)",null,null,"rok (n+2)"]
[null,null,null,"(rok złożenia WoP I)"]
[null,null,null,"Liczba","Cena jednostkowa","Wartość ","Liczba ","Cena jednostkowa","Wartość ","Liczba ","Cena jednostkowa","Wartość"]
[null,{"$f":"ROW(B1)","v":1},null,null,null,{"$f":"+D311*E311","v":0},null,null,{"$f":"+G311*H311","v":0},null,null,{"$f":"+J311*K311","v":0}]
[null,{"$f":"ROW(B2)","v":2},null,null,null,{"$f":"+D312*E312","v":0},null,null,{"$f":"+G312*H312","v":0},null,null,{"$f":"+J312*K312","v":0}]
[null,{"$f":"ROW(B3)","v":3},null,null,null,0,null,null,0,null,null,0]
[null,{"$f":"ROW(B4)","v":4},null,null,null,0,null,null,{"$f":"+G314*H314","v":0},null,null,0]
[null,111,1111]
[null,"Razem:",null,null,null,{"$f":"SUM(F311:F315)","v":0},null,null,{"$f":"SUM(I311:I315)","v":0},null,null,{"$f":"SUM(L311:L315)","v":0}]
[]
[null,"Specyfikacja ",null,"rok (n+3)",null,null,"rok (n+4)",null,null,"rok (n+5)"]
[null,"produktów/towarów/usług",null,"Liczba ","Cena jednostkowa","Wartość","Liczba ","Cena jednostkowa","Wartość ","Liczba ","Cena jednostkowa","Wartość "]
[null,{"$f":"ROW(B1)","v":1},null,null,null,{"$f":"+D320*E320","v":0},null,null,{"$f":"+G320*H320","v":0},null,null,{"$f":"+J320*K320","v":0}]
[null,{"$f":"ROW(B2)","v":2},null,null,null,{"$f":"+D321*E321","v":0},null,null,{"$f":"+G321*H321","v":0},null,null,{"$f":"+J321*K321","v":0}]
[null,{"$f":"ROW(B3)","v":3},null,null,null,0,null,null,0,null,null,0]
[null,{"$f":"ROW(B4)","v":4},null,null,null,{"$f":"+D323*E323","v":0},null,null,{"$f":"+G323*H323","v":0},null,null,{"$f":"+J323*K323","v":0},{"$f":"ROW(M1)","v":1}]
[]
[null,"Razem:",null,null,null,{"$f":"SUM(F320:F324)","v":0},null,null,{"$f":"SUM(I320:I324)","v":0},null,null,{"$f":"SUM(L320:L324)","v":0}]
[]
[]
[]
[]
[]
[]
[]
[null,"IV.4.2 Prognoza wydatków na podstawie sekcji IV.4"]
[null,"Kategoria wydatku11",null,"rok n ","rok (n+1)","rok (n+2)","rok (n+3)","rok (n+4)","rok (n+5)"]
[null,null,null,"(rok złożenia WoP I) "]
[null,"Zużycie materiałów/surowców, zakup towarów"]
[null,"Spłata kredytów/leasing",null,{"$f":"+Tabela_pomocnicza!E5+Tabela_pomocnicza!E6","v":0},{"$f":"+Tabela_pomocnicza!F5+Tabela_pomocnicza!F6","v":0},{"$f":"+Tabela_pomocnicza!G5+Tabela_pomocnicza!G6","v":0},{"$f":"+Tabela_pomocnicza!H5+Tabela_pomocnicza!H6","v":0},{"$f":"+Tabela_pomocnicza!I5+Tabela_pomocnicza!I6","v":0},{"$f":"+Tabela_pomocnicza!J5+Tabela_pomocnicza!J6","v":0}]
[null,"Koszty finansowe (odsetki kredytowe, leasingowe)"]
[null,"Usługi obce (w tym m.in. naprawy  i  konserwacje maszyn, budynków, energia elektryczna, opał, gaz, woda, ścieki, odpady, telekomunikacja)"]
[null,"Paliwo"]
[null,"Wynagrodzenia i narzuty na wynagrodzenia"]
[null,"Wydatki na dzierżawy, czynsze, itp."]
[null,"Wydatki na podatek dochodowy"]
[null,"Pozostałe wydatki"]
[null,"Razem:",null,{"$f":"SUM(D336:D344)","v":0},0,0,0,0,0]
[]
[]
[null,"IV.4.3 Prognoza różnicy",null,"rok n ","rok (n+1)","rok (n+2)","rok (n+3)","rok (n+4)","rok (n+5)"]
[null,"przychodów i wydatków"]
[null,"IV.4.1 (Razem) – IV.4.2 (Razem)",null,{"$f":"+F316-D345","v":0},{"$f":"+I316-E345","v":0},{"$f":"+L316-F345","v":0},{"$f":"+F325-G345","v":0},{"$f":"+I325-H345","v":0},{"$f":"+L325-I345","v":0}]
[null,"Wartość dodana brutto",null,{"$f":"+F316-D336-D337-D338-D339-D340-D342-D344+Tabela_pomocnicza!E5","v":0},{"$f":"+I316-E336-E337-E338-E339-E340-E342-E344+Tabela_pomocnicza!F5","v":0},{"$f":"+L316-F336-F337-F338-F339-F340-F342-F344+Tabela_pomocnicza!G5","v":0},{"$f":"+F325-G336-G337-G338-G339-G340-G342-G344+Tabela_pomocnicza!H5","v":0},{"$f":"+I325-H336-H337-H338-H339-H340-H342-H344+Tabela_pomocnicza!I5","v":0},{"$f":"+L325-I336-I337-I338-I339-I340-I342-I344+Tabela_pomocnicza!J5","v":0}]
[]
[null,null,null,"wybierz"]
[null,"IV.4.4 Wartość dodana brutto dla roku następującego po roku złożenia wniosku o płatność drugiej raty pomocy",null,{"$f":"IF(wybierz=\"wybierz\",0,HLOOKUP(wybierz,D348:I351,4,FALSE))","v":0}]
[null,"[11] Nie należy umieszczać wydatków związanych z kosztami operacji"]
[]
[]
[]
[]
[null,"V. Podsumowanie biznesplanu"]
[null,"Do poniższych pól należy przenieść treść zawartą w odpowiednich pozycjach biznesplanu"]
[null,"I.1.1 Dane Podmiotu ubiegającego się o przyznanie pomocy"]
[null,"Imię i nazwisko Podmiotu ubiegającego się o przyznanie pomocy",null,null,null,null,{"$f":"+I.1.1.","v":0}]
[null,"PESEL",null,null,null,null,{"$f":"+E101","v":0}]
[null,"IV.1 Dane podstawowe"]
[null,"Klasyfikacja planowanej działalności"]
[null,"Kod PKD",null,"Opis kodu PKD"]
[null,{"$f":"+B285","v":"(wybierz z listy)"},null,{"$f":"+D285","v":0}]
[null,{"$f":"+B286","v":"(wybierz z listy)"},null,{"$f":"+D286","v":0},null,null,null,null,null,null,null,null,{"$f":"ROW(M1)","v":1}]
[null,{"$f":"+B287","v":"(wybierz z listy)"},null,{"$f":"+D287","v":0},null,null,null,null,null,null,null,null,{"$f":"ROW(M2)","v":2}]
[]
[]
[null,"IV.2 Koncepcja wykonalności operacji oraz prowadzenia pozarolniczej działalności gospodarczej"]
[null,{"$f":"+IV.2_Koncepcja","v":0}]
[null,{"$f":"+IV.2_wiersz2","v":0},null,null,null,null,null,null,null,null,null,null,{"$f":"ROW(M1)","v":1}]
[null,"IV.4.3 Prognoza różnicy",null,null,null,"rok n ","rok (n+1)","rok (n+2)","rok (n+3)","rok (n+4)","rok (n+5)"]
[]
[null,"IV.4.1 (Razem) – IV.4.2 (Razem)",null,null,null,{"$f":"+D350","v":0},{"$f":"+E350","v":0},{"$f":"+F350","v":0},0,0,{"$f":"+I350","v":0}]
[]
[]
[]
[]
[]
[]
[]
[]
[]
[null," miejscowość i data ",null,null,null,null,null,"czytelny podpis podmiotu ubiegającego się o przyznanie pomocy/ pełnomocnika tego podmiotu"]

{"sheet":"Tabela_pomocnicza","index":1,"n_rows":6,"n_cols":10,"rows_kept":6,"cut":false,"hidden":false,"merged":[[3,2,3,3],[4,2,4,3],[5,2,5,3]]}
[]
[null,null,"Uwaga! Poniższa tabela ma charakter pomocniczy. Nie należy jej drukować i dołączać do biznesplanu."]
[]
[null,null,"Tabela pomocnicza do wyliczenia kredytu/leasingu",null,"rok n ","rok (n+1)","rok (n+2)","rok (n+3)","rok (n+4)","rok (n+5)"]
[null,null,"kredyt kapitał"]
[null,null,"leasing kapitał"]

{"sheet":"instrukcja_obsługi_makr","index":2,"n_rows":351,"n_cols":6,"rows_kept":351,"cut":false,"hidden":false,"merged":[[95,1,95,19],[0,0,0,18],[9,1,9,17],[89,0,89,19],[90,1,90,19],[92,1,92,19],[94,1,94,19],[349,2,349,21],[350,2,350,20],[329,1,329,20],[330,2,330,20],[331,2,331,20],[334,2,334,20],[332,2,333,20]]}
["Uwaga! Poniższy plik zawiera wbudowane makra! \""]
[]
[null,null,null,null,null,"Obsługę pliku Excel zawierającego makra wskazuje poniższa instrukcja:"]
[null,null,null,null,null,"Po zapoznaniu się z instrukcją proszę przejść do zakładki \"Biznesplan\""]
[]
[null,null,"Poniżej zostały zamieszczone zrzuty z ekranu, obrazujące prawidłowy sposób pobrania i użytkowania pliku z wbudowanymi makrami."]
[]
[null,"Zrzut nr 1"]
[]
[null,"W przypadku plików z makrami (o rozszerzeniu .xlsm) nie należy wybierać opcji \"Otwórz za pomocą\". \nNależy zaznaczyć pole wyboru „Zapisz plik” i potwierdzić przyciskiem „OK”.Plik zostanie automatycznie zapisany na stacji roboczej użytkownika w folderze „Pobrane”."]
[]
[]
[]
[]
[]
[]
[]
[]
[]
[]
[]
[]
[]
[]
[]
[]
[]
[]
[]
[]
[]
[]
[]
[]
[]
[]
[]
[]
[]
[]
[]
[]
[]
[]
[]
[]
[]
[]
[]
[null,"Zrzut nr 2"]
[null,"Należy przejść do folderu „Pobrane” i otworzyć plik"]
[]
[]
[]
[]
[]
[]
[]
[]
[]
[]
[]
[]
[]
[]
[]
[]
[]
[]
[]
[]
[]
[]
[]
[]
[]
[]
[]
[]
[]
[]
[]
[]
[]
[]
[]
[]
[]
[]
["Włączanie makr po wyświetleniu paska komunikatów "]
[null,"Gdy zostanie otwarty plik zawierający makra, pojawi się żółty pasek komunikatów z ikoną tarczy i przyciskiem „Włącz zawartość”. Jeśli wiadomo, że makra pochodzą z wiarygodnego źródła, należy skorzystać z następujących instrukcji:"]
[]
[null,"• W obszarze Pasek komunikatów kliknij pozycję „Włącz zawartość”."]
[]
[null,"Zostanie otwarty plik, który jest dokumentem zaufanym."]
[null,"Poniższy obraz przedstawia przykład paska komunikatów, gdy w pliku znajdują się makra."]
[]
[]
[]
[]
[null,"W przypadku, gdy powyższy komunikat się nie pojawi, należy sprawdzić ustawienia makr dostępne z menu \"Plik\"."]
[]
[]
[null,"Zrzut nr 3"]
[null,"Należy wybrać menu \"Plik\" i przejść do pozycji \"Opcje\" i  przejść do \"Centrum zaufania \""]
[]
[]
[]
[]
[]
[]
[]
[]
[]
[]
[]
[]
[]
[]
[]
[]
[]
[]
[]
[]
[]
[]
[]
[]
[]
[]
[]
[]
[]
[]
[]
[]
[]
[]
[]
[]
[]
[]
[]
[]
[]
[]
[]
[]
[]
[]
[]
[]
[]
[]
[]
[]
[]
[]
[]
[]
[null,"Zrzut nr 4"]
[null,"Następnie należy  wybrać \"Ustawienia Centrum Zaufania\" i sprawdzić ustawienia paska komunikatów. (zrzut nr 5)"]
[]
[]
[]
[]
[]
[]
[]
[]
[]
[]
[]
[]
[]
[]
[]
[]
[]
[]
[]
[]
[]
[]
[]
[]
[]
[]
[]
[]
[]
[]
[]
[]
[]
[]
[]
[]
[]
[]
[]
[]
[]
[]
[]
[]
[]
[]
[]
[]
[]
[]
[]
[null,"Zrzut nr 5"]
[null,"Powinna być zaznaczona opcja \"Pokaż pasek komunikatów we wszystkich aplikacjach, jeśli zawartość aktywna, taka jak kontrolki AcitveX i makra, została zablokowana"]
[null,"a następnie wybrać  opcję \"Zawartość zewnętrzna\"."]
[]
[]
[]
[]
[]
[]
[]
[]
[]
[]
[]
[]
[]
[]
[]
[]
[]
[]
[]
[]
[]
[]
[]
[]
[]
[]
[]
[]
[]
[]
[]
[]
[]
[]
[]
[]
[]
[]
[]
[]
[]
[]
[]
[]
[]
[]
[]
[]
[]
[]
[]
[]
[]
[]
[]
[null,"Zrzut nr 6"]
[null,"Należy sprawdzić, czy zaznaczone są poniższe opcje."]
[]
[]
[]
[]
[]
[]
[]
[]
[]
[]
[]
[]
[]
[]
[]
[]
[]
[]
[]
[]
[]
[]
[]
[]
[]
[]
[]
[]
[]
[]
[]
[]
[]
[]
[]
[]
[]
[]
[]
[]
[]
[]
[]
[]
[]
[]
[]
[]
[]
[]
[]
[]
[]
[]
[]
[null,"Sposób użycia przycisków \"Rozdziel komórki wiersza\" oraz Scal komórki wiersza\""]
[null,null,"Powyższy  plik zawiera scalone pola (kolumny i wiersze). W związku z powyższym niemożliwe jest bezpośrednie kopiowanie treści z innych źródeł do tabel \"Biznesplanu\" lub innych scalonych pól (części opisowych)."]
[null,null,"W celu umożliwienia kopiowania treści do tych pól dodano przyciski :"]
[null,null," -  \"Rozdziel komórki wiersza\""]
[]
[null,null," -  \"Scal komórki wiersza\""]
[]
[null,null,"W razie potrzeby skopiowania treści do wybranego pola, należy użyć przycisku :"]
[]
[]
[]
[null,null,"Po przekopiowaniu  treści do wybranego pola należy następnie użyć przcisku :"]
[]
[]
[]
[]
[]
[]
[]
[]
[null,null,"Uwaga!"]
[null,null,"W przypadku kopiowania znacznej ilości tekstu do sekcji IV.2 \"Koncepcja wykonalności .....\" np. z \"MS Word\", należy najpierw usunąć akapity ( tekst musi znajdować się w zwartym bloku) , ze względu na konieczność ograniczenia  liczby wierszy w ww. sekcji do 2. Wysokość wierszy można dopasować przy użyciu przycisku \"dopasuj wysokość wiersza\".\n"]

{"sheet":"lista","index":3,"n_rows":7,"n_cols":3,"rows_kept":7,"cut":false,"hidden":true,"merged":[]}
["(wybierz z listy)",null,"wybierz"]
["Tak","Nie","rok n "]
["Nie",null,"rok (n+1)"]
[null,null,"rok (n+2)"]
["Tak",null,"rok (n+3)"]
["Nie","X","rok (n+4)"]
[null,null,"rok (n+5)"]

{"sheet":"PKD","index":4,"n_rows":407,"n_cols":2,"rows_kept":407,"cut":false,"hidden":true,"merged":[[0,1,0,7]]}
["Numer Polskiej Klasyfikacji Działalności (PKD)"," Rodzaj działalności"]
["(wybierz z listy)"]
["01.70.Z"," Łowiectwo i pozyskiwanie zwierząt łownych, włączając działalność usługową"]
["02.20.Z"," Pozyskiwanie drewna"]
["02.40.Z"," Działalność usługowa związana z leśnictwem"]
["08.11.Z"," Wydobywanie kamieni ozdobnych oraz kamienia dla potrzeb budownictwa, skał wapiennych, gipsu, kredy i łupków"]
["08.12.Z"," Wydobywanie żwiru i piasku; wydobywanie gliny i kaolinu"]
["08.92.Z"," Wydobywanie torfu"]
["08.99.Z"," Pozostałe górnictwo i wydobywanie, gdzie indziej niesklasyfikowane"]
["10.52.Z"," Produkcja lodów"]
["10.71.Z"," Produkcja pieczywa; produkcja świeżych wyrobów ciastkarskich i ciastek"]
["10.72.Z"," Produkcja sucharów i herbatników; produkcja konserwowanych wyrobów ciastkarskich i ciastek"]
["10.73.Z"," Produkcja makaronów, klusek, kuskusu i podobnych wyrobów mącznych"]
["10.82.Z"," Produkcja kakao, czekolady i wyrobów cukierniczych"]
["10.84.Z"," Produkcja przypraw"]
["10.85.Z"," Wytwarzanie gotowych posiłków i dań"]
["10.86.Z"," Produkcja artykułów spożywczych homogenizowanych i żywności dietetycznej"]
["10.89.Z"," Produkcja pozostałych artykułów spożywczych, gdzie indziej niesklasyfikowana"]
["11.05.Z"," Produkcja piwa"]
["11.07.Z"," Produkcja napojów bezalkoholowych; produkcja wód mineralnych i pozostałych wód butelkowanych"]
["13.10.A"," Produkcja przędzy bawełnianej"]
["13.10.B"," Produkcja przędzy wełnianej"]
["13.10.C"," Produkcja przędzy z włókien chemicznych"]
["13.20.A"," Produkcja tkanin bawełnianych"]
["13.20.В"," Produkcja tkanin wełnianych"]
["13.20.C"," Produkcja tkanin z włókien chemicznych"]
["13.20.D"," Produkcja pozostałych tkanin"]
["13.30.Z"," Wykończanie wyrobów włókienniczych"]
["13.91.Z"," Produkcja dzianin metrażowych"]
["13.92.Z"," Produkcja gotowych wyrobów tekstylnych"]
["13.93.Z"," Produkcja dywanów i chodników"]
["13.94.Z"," Produkcja wyrobów powroźniczych, lin, szpagatów i wyrobów sieciowych"]
["13.95.Z"," Produkcja włóknin i wyrobów wykonanych z włóknin, z wyłączeniem odzieży"]
["13.96.Z"," Produkcja pozostałych technicznych i przemysłowych wyrobów tekstylnych"]
["13.99.Z"," Produkcja pozostałych wyrobów tekstylnych, gdzie indziej niesklasyfikowana"]
["14.11.Z"," Produkcja odzieży skórzanej"]
["14.12.Z"," Produkcja odzieży roboczej"]
["14.13.Z"," Produkcja pozostałej odzieży wierzchniej"]
["14.14.Z"," Produkcja bielizny"]
["14.19.Z"," Produkcja pozostałej odzieży i dodatków do odzieży"]
["14.20.Z"," Produkcja wyrobów futrzarskich"]
["14.31.Z"," Produkcja wyrobów pończoszniczych"]
["14.39.Z"," Produkcja pozostałej odzieży dzianej"]
["15.11.Z"," Wyprawa skór, garbowanie; wyprawa i barwienie skór futerkowych"]
["15.12.Z"," Produkcja toreb bagażowych, toreb ręcznych i podobnych wyrobów kaletniczych; produkcja wyrobów rymarskich"]
["15.20.Z"," Produkcja obuwia"]
["16.10.Z"," Produkcja wyrobów tartacznych"]
["16.21.Z"," Produkcja arkuszy fornirowych i płyt wykonanych na bazie drewna"]
["16.22.Z"," Produkcja gotowych parkietów podłogowych"]
["16.23.Z"," Produkcja pozostałych wyrobów stolarskich i ciesielskich dla budownictwa"]
["16.24.Z"," Produkcja opakowań drewnianych"]
["16.29.Z"," Produkcja pozostałych wyrobów z drewna; produkcja wyrobów z korka, słomy i materiałów używanych do wyplatania"]
["17.11.Z"," Produkcja masy włóknistej"]
["17.12.Z"," Produkcja papieru i tektury"]
["17.21.Z"," Produkcja papieru falistego i tektury falistej oraz opakowań z papieru i tektury"]
["17.22.Z"," Produkcja artykułów gospodarstwa domowego, toaletowych i sanitarnych"]
["17.23.Z"," Produkcja artykułów piśmiennych"]
["17.24.Z"," Produkcja tapet"]
["17.29.Z"," Produkcja pozostałych wyrobów z papieru i tektury"]
["18.12.Z"," Pozostałe drukowanie"]
["18.13.Z"," Działalność usługowa związana z przygotowywaniem do druku"]
["18.14.Z"," Introligatorstwo i podobne usługi"]
["19.20.Z"," Wytwarzanie i przetwarzanie produktów rafinacji ropy naftowej"]
["20.41.Z"," Produkcja mydła i detergentów, środków myjących i czyszczących"]
["20.42.Z"," Produkcja wyrobów kosmetycznych i toaletowych"]
["20.53.Z"," Produkcja olejków eterycznych"]
["22.11.Z"," Produkcja opon i dętek z gumy; bieżnikowanie i regenerowanie opon z gumy"]
["22.19.Z"," Produkcja pozostałych wyrobów z gumy"]
["22.21.Z"," Produkcja płyt, arkuszy, rur i kształtowników z tworzyw sztucznych"]
["22.22.Z"," Produkcja opakowań z tworzyw sztucznych"]
["22.23.Z"," Produkcja wyrobów dla budownictwa z tworzyw sztucznych"]
["22.29.Z"," Produkcja pozostałych wyrobów z tworzyw sztucznych"]
["23.11.Z"," Produkcja szkła płaskiego"]
["23.12.Z"," Kształtowanie i obróbka szkła płaskiego"]
["23.13.Z"," Produkcja szkła gospodarczego"]
["23.31.Z"," Produkcja ceramicznych kafli i płytek"]
["23.32.Z"," Produkcja cegieł, dachówek i materiałów budowlanych, z wypalanej gliny"]
["23.41.Z"," Produkcja ceramicznych wyrobów stołowych i ozdobnych"]
["23.42.Z"," Produkcja ceramicznych wyrobów sanitarnych"]
["23.43.Z"," Produkcja ceramicznych izolatorów i osłon izolacyjnych"]
["23.44.Z"," Produkcja pozostałych technicznych wyrobów ceramicznych"]
["23.49.Z"," Produkcja pozostałych wyrobów ceramicznych"]
["23.61.Z"," Produkcja wyrobów budowlanych z betonu"]
["23.62.Z"," Produkcja wyrobów budowlanych z gipsu"]
["23.63.Z"," Produkcja masy betonowej prefabrykowanej"]
["23.64.Z"," Produkcja zaprawy murarskiej"]
["23.65.Z"," Produkcja cementu wzmocnionego włóknem"]
["23.69.Z"," Produkcja pozostałych wyrobów z betonu, gipsu i cementu"]
["23.70.Z"," Cięcie, formowanie i wykańczanie kamienia"]
["23.91.Z"," Produkcja wyrobów ściernych"]
["23.99.Z"," Produkcja pozostałych wyrobów z mineralnych surowców niemetalicznych, gdzie indziej niesklasyfikowana"]
["24.31.Z"," Produkcja prętów ciągnionych na zimno"]
["24.32.Z"," Produkcja wyrobów płaskich walcowanych na zimno"]
["24.33.Z"," Produkcja wyrobów formowanych na zimno"]
["24.34.Z"," Produkcja drutu"]
["24.44.Z"," Produkcja miedzi"]
["24.51.Z"," Odlewnictwo żeliwa"]
["24.52.Z"," Odlewnictwo staliwa"]
["24.53.Z"," Odlewnictwo metali lekkich"]
["24.54.A"," Odlewnictwo miedzi i stopów miedzi"]
["24.54.В"," Odlewnictwo pozostałych metali nieżelaznych, gdzie indziej niesklasyfikowane"]
["25.11.Z"," Produkcja konstrukcji metalowych i ich części"]
["25.12.Z"," Produkcja metalowych elementów stolarki budowlanej"]
["25.21.Z"," Produkcja grzejników i kotłów centralnego ogrzewania"]
["25.29.Z"," Produkcja pozostałych zbiorników, cystern i pojemników metalowych"]
["25.30.Z"," Produkcja wytwornic pary, z wyłączeniem kotłów do centralnego ogrzewania gorącą wodą"]
["25.50.Z"," Kucie, prasowanie, wytłaczanie i walcowanie metali; metalurgia proszków"]
["25.61.Z"," Obróbka metali i nakładanie powłok na metale"]
["25.62.Z"," Obróbka mechaniczna elementów metalowych"]
["25.71.Z"," Produkcja wyrobów nożowniczych i sztućców"]
["25.72.Z"," Produkcja zamków i zawiasów"]
["25.73.Z"," Produkcja narzędzi"]
["25.91.Z"," Produkcja pojemników metalowych"]
["25.92.Z"," Produkcja opakowań z metali"]
["25.93.Z"," Produkcja wyrobów z drutu, łańcuchów i sprężyn"]
["25.94.Z"," Produkcja złączy i śrub"]
["25.99.Z"," Produkcja pozostałych gotowych wyrobów metalowych, gdzie indziej niesklasyfikowana"]
["26.11.Z"," Produkcja elementów elektronicznych"]
["26.40.Z"," Produkcja elektronicznego sprzętu powszechnego użytku"]
["26.51.Z"," Produkcja instrumentów i przyrządów pomiarowych, kontrolnych i nawigacyjnych"]
["26.52.Z"," Produkcja zegarków i zegarów"]
["26.70.Z"," Produkcja instrumentów optycznych i sprzętu fotograficznego"]
["27.12.Z"," Produkcja aparatury rozdzielczej i sterowniczej energii elektrycznej"]
["27.31.Z"," Produkcja kabli światłowodowych"]
["27.32.Z"," Produkcja pozostałych elektronicznych i elektrycznych przewodów i kabli"]
["27.33.Z"," Produkcja sprzętu instalacyjnego"]
["27.40.Z"," Produkcja elektrycznego sprzętu oświetleniowego"]
["27.51.Z"," Produkcja elektrycznego sprzętu gospodarstwa domowego"]
["27.52.Z"," Produkcja nieelektrycznego sprzętu gospodarstwa domowego"]
["27.90.Z"," Produkcja pozostałego sprzętu elektrycznego"]
["28.11.Z"," Produkcja silników i turbin, z wyłączeniem silników lotniczych, samochodowych i motocyklowych"]
["28.12.Z"," Produkcja sprzętu i wyposażenia do napędu hydraulicznego i pneumatycznego"]
["28.14.Z"," Produkcja pozostałych kurków i zaworów"]
["28.21.Z"," Produkcja pieców, palenisk i palników piecowych"]
["28.22.Z"," Produkcja urządzeń dźwigowych i chwytaków"]
["28.23.Z"," Produkcja maszyn i sprzętu biurowego, z wyłączeniem komputerów i urządzeń peryferyjnych"]
["28.24.Z"," Produkcja narzędzi ręcznych mechanicznych"]
["28.29.Z"," Produkcja pozostałych maszyn ogólnego przeznaczenia, gdzie indziej niesklasyfikowana"]
["28.30.Z"," Produkcja maszyn dla rolnictwa i leśnictwa"]
["28.41.Z"," Produkcja maszyn do obróbki metalu"]
["28.49.Z"," Produkcja pozostałych narzędzi mechanicznych"]
["28.93.Z"," Produkcja maszyn stosowanych w przetwórstwie żywności, tytoniu i produkcji napojów"]
["28.94.Z"," Produkcja maszyn dla przemysłu tekstylnego, odzieżowego i skórzanego"]
["28.95.Z"," Produkcja maszyn dla przemysłu papierniczego"]
["28.96.Z"," Produkcja maszyn do obróbki gumy lub tworzyw sztucznych oraz wytwarzania wyrobów z tych materiałów"]
["28.99.Z"," Produkcja pozostałych maszyn specjalnego przeznaczenia, gdzie indziej niesklasyfikowana"]
["29.32.Z"," Produkcja pozostałych części i akcesoriów do pojazdów silnikowych, z wyłączeniem motocykli"]
["30.11.Z"," Produkcja statków i konstrukcji pływających"]
["30.12.Z"," Produkcja łodzi wycieczkowych i sportowych"]
["30.20.Z"," Produkcja lokomotyw kolejowych oraz taboru szynowego"]
["30.30.Z"," Produkcja statków powietrznych, statków kosmicznych i podobnych maszyn"]
["30.92.Z"," Produkcja rowerów i wózków inwalidzkich"]
["30.99.Z"," Produkcja pozostałego sprzętu transportowego, gdzie indziej niesklasyfikowana"]
["31.01.Z"," Produkcja mebli biurowych i sklepowych"]
["31.02.Z"," Produkcja mebli kuchennych"]
["31.03.Z"," Produkcja materaców"]
["31.09.Z"," Produkcja pozostałych mebli"]
["32.11.Z"," Produkcja monet"]
["32.12.Z"," Produkcja wyrobów jubilerskich i podobnych"]
["32.13.Z"," Produkcja sztucznej biżuterii i wyrobów podobnych"]
["32.20.Z"," Produkcja instrumentów muzycznych"]
["32.30.Z"," Produkcja sprzętu sportowego"]
["32.40.Z"," Produkcja gier i zabawek"]
["32.50.Z"," Produkcja urządzeń, instrumentów oraz wyrobów medycznych, włączając dentystyczne"]
["32.91.Z"," Produkcja mioteł, szczotek i pędzli"]
["32.99.Z"," Produkcja pozostałych wyrobów, gdzie indziej niesklasyfikowana"]
["33.11.Z"," Naprawa i konserwacja metalowych wyrobów gotowych"]
["33.12.Z"," Naprawa i konserwacja maszyn"]
["33.13.Z"," Naprawa i konserwacja urządzeń elektronicznych i optycznych"]
["33.14.Z"," Naprawa i konserwacja urządzeń elektrycznych"]
["33.15.Z"," Naprawa i konserwacja statków i łodzi"]
["33.16.Z"," Naprawa i konserwacja statków powietrznych i statków kosmicznych"]
["33.17.Z"," Naprawa i konserwacja pozostałego sprzętu transportowego"]
["33.19.Z"," Naprawa i konserwacja pozostałego sprzętu i wyposażenia"]
["33.20.Z"," Instalowanie maszyn przemysłowych, sprzętu i wyposażenia"]
["35.11.Z"," Wytwarzanie energii elektrycznej"]
["35.12.Z"," Przesyłanie energii elektrycznej"]
["35.13.Z"," Dystrybucja energii elektrycznej"]
["35.14.Z"," Handel energią elektryczną"]
["35.21.Z"," Wytwarzanie paliw gazowych"]
["35.30.Z"," Wytwarzanie i zaopatrywanie w parę wodną, gorącą wodę i powietrze do układów klimatyzacyjnych"]
["37.00.Z"," Odprowadzanie i oczyszczanie ścieków"]
["38.11.Z"," Zbieranie odpadów innych niż niebezpieczne"]
["38.12.Z"," Zbieranie odpadów niebezpiecznych"]
["38.21.Z"," Obróbka i usuwanie odpadów innych niż niebezpieczne"]
["38.22.Z"," Przetwarzanie i unieszkodliwianie odpadów niebezpiecznych"]
["38.31.Z"," Demontaż wyrobów zużytych"]
["38.32.Z"," Odzysk surowców z materiałów segregowanych"]
["39.00.Z"," Działalność związana z rekultywacją i pozostała działalność usługowa związana z gospodarką odpadami"]
["41.10.Z"," Realizacja projektów budowlanych związanych ze wznoszeniem budynków"]
["41.20.Z"," Roboty budowlane związane ze wznoszeniem budynków mieszkalnych i niemieszkalnych"]
["42.11.Z"," Roboty związane z budową dróg i autostrad"]
["42.21.Z"," Roboty związane z budową rurociągów przesyłowych i sieci rozdzielczych"]
["42.99.Z"," Roboty związane z budową pozostałych obiektów inżynierii lądowej i wodnej, gdzie indziej niesklasyfikowane"]
["43.11.Z"," Rozbiórka i burzenie obiektów budowlanych"]
["43.12.Z"," Przygotowanie terenu pod budowę"]
["43.13.Z"," Wykonywanie wykopów i wierceń geologiczno-inżynierskich"]
["43.21.Z"," Wykonywanie instalacji elektrycznych"]
["43.22.Z"," Wykonywanie instalacji wodno-kanalizacyjnych, cieplnych, gazowych i klimatyzacyjnych"]
["43.29.Z"," Wykonywanie pozostałych instalacji budowlanych"]
["43.31.Z"," Tynkowanie"]
["43.32.Z"," Zakładanie stolarki budowlanej"]
["43.33.Z"," Posadzkarstwo; tapetowanie i oblicowywanie ścian"]
["43.34.Z"," Malowanie i szklenie"]
["43.39.Z"," Wykonywanie pozostałych robót budowlanych wykończeniowych"]
["43.91.Z"," Wykonywanie konstrukcji i pokryć dachowych"]
["43.99.Z"," Pozostałe specjalistyczne roboty budowlane, gdzie indziej niesklasyfikowane"]
["45.11.Z"," Sprzedaż hurtowa i detaliczna samochodów osobowych i furgonetek"]
["45.19.Z"," Sprzedaż hurtowa i detaliczna pozostałych pojazdów samochodowych, z wyłączeniem motocykli"]
["45.20.Z"," Konserwacja i naprawa pojazdów samochodowych, z wyłączeniem motocykli"]
["45.31.Z"," Sprzedaż hurtowa części i akcesoriów do pojazdów samochodowych, z wyłączeniem motocykli"]
["45.32.Z"," Sprzedaż detaliczna części i akcesoriów do pojazdów samochodowych, z wyłączeniem motocykli"]
["45.40.Z"," Sprzedaż hurtowa i detaliczna motocykli, ich naprawa i konserwacja oraz sprzedaż hurtowa i detaliczna części i akcesoriów do nich"]
["46.12.Z"," Działalność agentów zajmujących się sprzedażą paliw, rud, metali i chemikaliów przemysłowych"]
["46.13.Z"," Działalność agentów zajmujących się sprzedażą drewna i materiałów budowlanych"]
["46.14.Z"," Działalność agentów zajmujących się sprzedażą maszyn, urządzeń przemysłowych, statków i samolotów"]
["46.15.Z"," Działalność agentów zajmujących się sprzedażą mebli, artykułów gospodarstwa domowego i drobnych wyrobów metalowych"]
["46.16.Z"," Działalność agentów zajmujących się sprzedażą wyrobów tekstylnych, odzieży, wyrobów futrzarskich, obuwia i artykułów skórzanych"]
["46.18.Z"," Działalność agentów specjalizujących się w sprzedaży pozostałych określonych towarów"]
["46.19.Z"," Działalność agentów zajmujących się sprzedażą towarów różnego rodzaju"]
["46.24.Z"," Sprzedaż hurtowa skór"]
["46.41.Z"," Sprzedaż hurtowa wyrobów tekstylnych"]
["46.42.Z"," Sprzedaż hurtowa odzieży i obuwia"]
["46.43.Z"," Sprzedaż hurtowa elektrycznych artykułów użytku domowego"]
["46.44.Z"," Sprzedaż hurtowa wyrobów porcelanowych, ceramicznych i szklanych oraz środków czyszczących"]
["46.45.Z"," Sprzedaż hurtowa perfum i kosmetyków"]
["46.46.Z"," Sprzedaż hurtowa wyrobów farmaceutycznych i medycznych"]
["46.47.Z"," Sprzedaż hurtowa mebli, dywanów i sprzętu oświetleniowego"]
["46.48.Z"," Sprzedaż hurtowa zegarków, zegarów i biżuterii"]
["46.49.Z"," Sprzedaż hurtowa pozostałych artykułów użytku domowego"]
["46.51.Z"," Sprzedaż hurtowa komputerów, urządzeń peryferyjnych i oprogramowania"]
["46.52.Z"," Sprzedaż hurtowa sprzętu elektronicznego i telekomunikacyjnego oraz części do niego"]
["46.61.Z"," Sprzedaż hurtowa maszyn i urządzeń rolniczych oraz dodatkowego wyposażenia"]
["46.62.Z"," Sprzedaż hurtowa obrabiarek"]
["46.63.Z"," Sprzedaż hurtowa maszyn wykorzystywanych w górnictwie, budownictwie oraz inżynierii lądowej i wodnej"]
["46.64.Z"," Sprzedaż hurtowa maszyn dla przemysłu tekstylnego oraz maszyn do szycia i maszyn dziewiarskich"]
["46.65.Z"," Sprzedaż hurtowa mebli biurowych"]
["46.66.Z"," Sprzedaż hurtowa pozostałych maszyn i urządzeń biurowych"]
["46.69.Z"," Sprzedaż hurtowa pozostałych maszyn i urządzeń"]
["46.71.Z"," Sprzedaż hurtowa paliw i produktów pochodnych"]
["46.72.Z"," Sprzedaż hurtowa metali i rud metali"]
["46.73.Z"," Sprzedaż hurtowa drewna, materiałów budowlanych i wyposażenia sanitarnego"]
["46.74.Z"," Sprzedaż hurtowa wyrobów metalowych oraz sprzętu i dodatkowego wyposażenia hydraulicznego i grzejnego"]
["46.75.Z"," Sprzedaż hurtowa wyrobów chemicznych"]
["46.76.Z"," Sprzedaż hurtowa pozostałych półproduktów"]
["46.77.Z"," Sprzedaż hurtowa odpadów i złomu"]
["46.90.Z"," Sprzedaż hurtowa niewyspecjalizowana"]
["47.11.Z"," Sprzedaż detaliczna prowadzona w niewyspecjalizowanych sklepach z przewagą żywności, napojów i wyrobów tytoniowych"]
["47.19.Z"," Pozostała sprzedaż detaliczna prowadzona w niewyspecjalizowanych sklepach"]
["47.24.Z"," Sprzedaż detaliczna pieczywa, ciast, wyrobów ciastkarskich i cukierniczych prowadzona w wyspecjalizowanych sklepach"]
["47.30.Z"," Sprzedaż detaliczna paliw do pojazdów silnikowych na stacjach paliw"]
["47.41.Z"," Sprzedaż detaliczna komputerów, urządzeń peryferyjnych i oprogramowania prowadzona w wyspecjalizowanych sklepach"]
["47.42.Z"," Sprzedaż detaliczna sprzętu telekomunikacyjnego prowadzona w wyspecjalizowanych sklepach"]
["47.43.Z"," Sprzedaż detaliczna sprzętu audiowizualnego prowadzona w wyspecjalizowanych sklepach"]
["47.51.Z"," Sprzedaż detaliczna wyrobów tekstylnych prowadzona w wyspecjalizowanych sklepach"]
["47.52.Z"," Sprzedaż detaliczna drobnych wyrobów metalowych, farb i szkła prowadzona w wyspecjalizowanych sklepach"]
["47.53.Z"," Sprzedaż detaliczna dywanów, chodników i innych pokryć podłogowych oraz pokryć ściennych prowadzona w wyspecjalizowanych sklepach"]
["47.54.Z"," Sprzedaż detaliczna elektrycznego sprzętu gospodarstwa domowego prowadzona w wyspecjalizowanych sklepach"]
["47.59.Z"," Sprzedaż detaliczna mebli, sprzętu oświetleniowego i pozostałych artykułów użytku domowego prowadzona w wyspecjalizowanych sklepach"]
["47.61.Z"," Sprzedaż detaliczna książek prowadzona w wyspecjalizowanych sklepach"]
["47.62.Z"," Sprzedaż detaliczna gazet i artykułów piśmiennych prowadzona w wyspecjalizowanych sklepach"]
["47.63.Z"," Sprzedaż detaliczna nagrań dźwiękowych i audiowizualnych prowadzona w wyspecjalizowanych sklepach"]
["47.64.Z"," Sprzedaż detaliczna sprzętu sportowego prowadzona w wyspecjalizowanych sklepach"]
["47.65.Z"," Sprzedaż detaliczna gier i zabawek prowadzona w wyspecjalizowanych sklepach"]
["47.71.Z"," Sprzedaż detaliczna odzieży prowadzona w wyspecjalizowanych sklepach"]
["47.72.Z"," Sprzedaż detaliczna obuwia i wyrobów skórzanych prowadzona w wyspecjalizowanych sklepach"]
["47.73.Z"," Sprzedaż detaliczna wyrobów farmaceutycznych prowadzona w wyspecjalizowanych sklepach"]
["47.74.Z"," Sprzedaż detaliczna wyrobów medycznych, włączając ortopedyczne, prowadzona w wyspecjalizowanych sklepach"]
["47.75.Z"," Sprzedaż detaliczna kosmetyków i artykułów toaletowych prowadzona w wyspecjalizowanych sklepach"]
["47.76.Z"," Sprzedaż detaliczna kwiatów, roślin, nasion, nawozów, żywych zwierząt domowych i karmy dla zwierząt domowych prowadzona w wyspecjalizowanych sklepach"]
["47.77.Z"," Sprzedaż detaliczna zegarków, zegarów i biżuterii prowadzona w wyspecjalizowanych sklepach"]
["47.78.Z"," Sprzedaż detaliczna pozostałych nowych wyrobów prowadzona w wyspecjalizowanych sklepach"]
["47.79.Z"," Sprzedaż detaliczna artykułów używanych prowadzona w wyspecjalizowanych sklepach"]
["47.82.Z"," Sprzedaż detaliczna wyrobów tekstylnych, odzieży i obuwia prowadzona na straganach i targowiskach"]
["47.89.Z"," Sprzedaż detaliczna pozostałych wyrobów prowadzona na straganach i targowiskach"]
["47.91.Z"," Sprzedaż detaliczna prowadzona przez domy sprzedaży wysyłkowej lub Internet"]
["47.99.Z"," Pozostała sprzedaż detaliczna prowadzona poza siecią sklepową, straganami i targowiskami"]
["49.31.Z"," Transport lądowy pasażerski, miejski i podmiejski"]
["49.32.Z"," Działalność taksówek osobowych"]
["49.39.Z"," Pozostały transport lądowy pasażerski, gdzie indziej niesklasyfikowany"]
["49.41.Z"," Transport drogowy towarów"]
["49.42.Z"," Działalność usługowa związana z przeprowadzkami"]
["50.10.Z"," Transport morski i przybrzeżny pasażerski"]
["50.20.Z"," Transport morski i przybrzeżny towarów"]
["50.30.Z"," Transport wodny śródlądowy pasażerski"]
["50.40.Z"," Transport wodny śródlądowy towarów"]
["52.10.A"," Magazynowanie i przechowywanie paliw gazowych"]
["52.10.В"," Magazynowanie i przechowywanie pozostałych towarów"]
["52.21.Z"," Działalność usługowa wspomagająca transport lądowy"]
["52.29.В"," Działalność śródlądowych agencji transportowych"]
["52.29.C"," Działalność pozostałych agencji transportowych"]
["53.20.Z"," Pozostała działalność pocztowa i kurierska"]
["55.10.Z"," Hotele i podobne obiekty zakwaterowania"]
["55.20.Z"," Obiekty noclegowe turystyczne i miejsca krótkotrwałego zakwaterowania"]
["55.30.Z"," Pola kempingowe (włączając pola dla pojazdów kempingowych) i pola namiotowe"]
["55.90.Z"," Pozostałe zakwaterowanie"]
["56.10.A"," Restauracje i inne stałe placówki gastronomiczne"]
["56.10.В"," Ruchome placówki gastronomiczne"]
["56.21.Z"," Przygotowywanie i dostarczanie żywności dla odbiorców zewnętrznych (katering)"]
["56.29.Z"," Pozostała usługowa działalność gastronomiczna"]
["58.19.Z"," Pozostała działalność wydawnicza"]
["58.29.Z"," Działalność wydawnicza w zakresie pozostałego oprogramowania"]
["59.12.Z"," Działalność postprodukcyjna związana z filmami, nagraniami wideo i programami telewizyjnymi"]
["62.01.Z"," Działalność związana z oprogramowaniem"]
["62.02.Z"," Działalność związana z doradztwem w zakresie informatyki"]
["62.03.Z"," Działalność związana z zarządzaniem urządzeniami informatycznymi"]
["62.09.Z"," Pozostała działalność usługowa w zakresie technologii informatycznych i komputerowych"]
["63.11.Z"," Przetwarzanie danych; zarządzanie stronami internetowymi (hosting) i podobna działalność"]
["66.21.Z"," Działalność związana z oceną ryzyka i szacowaniem poniesionych strat"]
["66.22.Z"," Działalność agentów i brokerów ubezpieczeniowych"]
["66.29.Z"," Pozostała działalność wspomagająca ubezpieczenia i fundusze emerytalne"]
["68.31.Z"," Pośrednictwo w obrocie nieruchomościami"]
["69.10.Z"," Działalność prawnicza"]
["69.20.Z"," Działalność rachunkowo-księgowa; doradztwo podatkowe"]
["70.21.Z"," Stosunki międzyludzkie (public relations) i komunikacja"]
["70.22.Z"," Pozostałe doradztwo w zakresie prowadzenia działalności gospodarczej i zarządzania"]
["71.11.Z"," Działalność w zakresie architektury"]
["71.12.Z"," Działalność w zakresie inżynierii i związane z nią doradztwo techniczne"]
["71.20.A"," Badania i analizy związane z jakością żywności"]
["71.20.В"," Pozostałe badania i analizy techniczne"]
["73.11.Z"," Działalność agencji reklamowych"]
["73.12.A"," Pośrednictwo w sprzedaży czasu i miejsca na cele reklamowe w radio i telewizji"]
["73.12.В"," Pośrednictwo w sprzedaży miejsca na cele reklamowe w mediach drukowanych"]
["73.12.C"," Pośrednictwo w sprzedaży miejsca na cele reklamowe w mediach elektronicznych (Internet)"]
["73.12.D"," Pośrednictwo w sprzedaży miejsca na cele reklamowe w pozostałych mediach"]
["73.20.Z"," Badanie rynku i opinii publicznej"]
["74.20.Z"," Działalność fotograficzna"]
["74.30.Z"," Działalność związana z tłumaczeniami"]
["74.90.Z"," Pozostała działalność profesjonalna, naukowa i techniczna, gdzie indziej niesklasyfikowana"]
["75.00.Z"," Działalność weterynaryjna"]
["77.21.Z"," Wypożyczanie i dzierżawa sprzętu rekreacyjnego i sportowego"]
["77.22.Z"," Wypożyczanie kaset wideo, płyt CD, DVD itp."]
["77.29.Z"," Wypożyczanie i dzierżawa pozostałych artykułów użytku osobistego i domowego"]
["77.32.Z"," Wynajem i dzierżawa maszyn i urządzeń budowlanych"]
["77.33.Z"," Wynajem i dzierżawa maszyn i urządzeń biurowych, włączając komputery"]
["77.34.Z"," Wynajem i dzierżawa środków transportu wodnego"]
["77.35.Z"," Wynajem i dzierżawa środków transportu lotniczego"]
["77.39.Z"," Wynajem i dzierżawa pozostałych maszyn, urządzeń oraz dóbr materialnych, gdzie indziej niesklasyfikowane"]
["78.10.Z"," Działalność związana z wyszukiwaniem miejsc pracy i pozyskiwaniem pracowników"]
["78.20.Z"," Działalność agencji pracy tymczasowej"]
["78.30.Z"," Pozostała działalność związana z udostępnianiem pracowników"]
["79.11.A"," Działalność agentów turystycznych"]
["79.11.В"," Działalność pośredników turystycznych"]
["79.12.Z"," Działalność organizatorów turystyki"]
["79.90.A"," Działalność pilotów wycieczek i przewodników turystycznych"]
["79.90.В"," Działalność w zakresie informacji turystycznej"]
["79.90.C"," Pozostała działalność usługowa w zakresie rezerwacji, gdzie indziej niesklasyfikowana"]
["80.10.Z"," Działalność ochroniarska, z wyłączeniem obsługi systemów bezpieczeństwa"]
["80.20.Z"," Działalność ochroniarska w zakresie obsługi systemów bezpieczeństwa"]
["80.30.Z"," Działalność detektywistyczna"]
["81.21.Z"," Niespecjalistyczne sprzątanie budynków i obiektów przemysłowych"]
["81.22.Z"," Specjalistyczne sprzątanie budynków i obiektów przemysłowych"]
["81.29.Z"," Pozostałe sprzątanie"]
["81.30.Z"," Działalność usługowa związana z zagospodarowaniem terenów zieleni"]
["82.11.Z"," Działalność usługowa związana z administracyjną obsługą biura"]
["82.19.Z"," Wykonywanie fotokopii, przygotowywanie dokumentów i pozostała specjalistyczna działalność wspomagająca prowadzenie biura"]
["82.20.Z"," Działalność centrów telefonicznych (callcenter)"]
["82.30.Z"," Działalność związana z organizacją targów, wystaw i kongresów"]
["82.91.Z"," Działalność świadczona przez agencje inkasa i biura kredytowe"]
["82.92.Z"," Działalność związana z pakowaniem"]
["82.99.Z"," Pozostała działalność wspomagająca prowadzenie działalności gospodarczej, gdzie indziej niesklasyfikowana"]
["85.10.Z"," Wychowanie przedszkolne"]
["85.32.A"," Technika"]
["85.32.В"," Zasadnicze szkoły zawodowe"]
["85.51.Z"," Pozaszkolne formy edukacji sportowej oraz zajęć sportowych i rekreacyjnych"]
["85.52.Z"," Pozaszkolne formy edukacji artystycznej"]
["85.53.Z"," Pozaszkolne formy edukacji z zakresu nauki jazdy i pilotażu"]
["85.59.A"," Nauka języków obcych"]
["85.59.В"," Pozostałe pozaszkolne formy edukacji, gdzie indziej niesklasyfikowane"]
["86.21.Z"," Praktyka lekarska ogólna"]
["86.22.Z"," Praktyka lekarska specjalistyczna"]
["86.23.Z"," Praktyka lekarska dentystyczna"]
["86.90.A"," Działalność fizjoterapeutyczna"]
["86.90.В"," Działalność pogotowia ratunkowego"]
["86.90.C"," Praktyka pielęgniarek i położnych"]
["86.90.D"," Działalność paramedyczna"]
["87.10.Z"," Pomoc społeczna z zakwaterowaniem zapewniająca opiekę pielęgniarską"]
["87.20.Z"," Pomoc społeczna z zakwaterowaniem dla osób z zaburzeniami psychicznymi"]
["87.30.Z"," Pomoc społeczna z zakwaterowaniem dla osób w podeszłym wieku i osób niepełnosprawnych"]
["87.90.Z"," Pozostała pomoc społeczna z zakwaterowaniem"]
["88.10.Z"," Pomoc społeczna bez zakwaterowania dla osób w podeszłym wieku i osób niepełnosprawnych"]
["88.91.Z"," Opieka dzienna nad dziećmi"]
["88.99.Z"," Pozostała pomoc społeczna bez zakwaterowania, gdzie indziej niesklasyfikowana"]
["90.01.Z"," Działalność związana z wystawianiem przedstawień artystycznych"]
["90.02.Z"," Działalność wspomagająca wystawianie przedstawień artystycznych"]
["90.03.Z"," Artystyczna i literacka działalność twórcza"]
["90.04.Z"," Działalność obiektów kulturalnych"]
["91.01.A"," Działalność bibliotek"]
["93.11.Z"," Działalność obiektów sportowych"]
["93.12.Z"," Działalność klubów sportowych"]
["93.13.Z"," Działalność obiektów służących poprawie kondycji fizycznej"]
["93.19.Z"," Pozostała działalność związana ze sportem"]
["93.21.Z"," Działalność wesołych miasteczek i parków rozrywki"]
["93.29.Z"," Pozostała działalność rozrywkowa i rekreacyjna"]
["95.11.Z"," Naprawa i konserwacja komputerów i urządzeń peryferyjnych"]
["95.12.Z"," Naprawa i konserwacja sprzętu (tele)komunikacyjnego"]
["95.21.Z"," Naprawa i konserwacja elektronicznego sprzętu powszechnego użytku"]
["95.22.Z"," Naprawa i konserwacja urządzeń gospodarstwa domowego oraz sprzętu użytku domowego i ogrodniczego"]
["95.23.Z"," Naprawa obuwia i wyrobów skórzanych"]
["95.24.Z"," Naprawa i konserwacja mebli i wyposażenia domowego"]
["95.25.Z"," Naprawa zegarów, zegarków oraz biżuterii"]
["95.29.Z"," Naprawa pozostałych artykułów użytku osobistego i domowego"]
["96.01.Z"," Pranie i czyszczenie wyrobów włókienniczych i futrzarskich"]
["96.02.Z"," Fryzjerstwo i pozostałe zabiegi kosmetyczne"]
["96.03.Z"," Pogrzeby i działalność pokrewna"]
["96.04.Z"," Działalność usługowa związana z poprawą kondycji fizycznej"]
["96.09.Z"," Pozostała działalność usługowa, gdzie indziej niesklasyfikowana"]